Workbook

Sheet 24 TiBAlNO WMs + G69
A1: Heat ID | B1: Carbon | C1: Silicon | D1: Manganese | E1: Phosphorus | F1: Sulfur | G1: Copper | H1: Nickel | I1: Chromium | J1: Molybdenum | K1: Niobium | L1: Vanadium | M1: Titanium | N1: Boron | O1: Aluminum | P1: Nitrogen | Q1: Oxygen | R1: (Ti+B+Al+N+O) | S1: New Ar3 (ºC) | T1: Pcm | U1: CE | V1: A(C) | W1: EMU | X1: CEN | Y1: Ar3m (ºC) | Z1: Bs (ºC) | AA1: B50 (ºC) | AB1: Bf (ºC) | AC1: Ms (ºC) | AD1: Bf-Ms (ºC) | AE1: Ar3m -Bs (ºC) | AF1: Ar3m -B50 (ºC) | AG1: Ar3m -Bf (ºC) | AH1: YS (MPa) | AI1: UTS (MPa) | AJ1: YS/UTS | AK1: El (%) | AL1: RA (%) | AM1: T 100J | AN1: T 28J | AO1: Heat ID
A2: O | B2: 0.074 | C2: 0.25 | D2: 1.4 | E2: 0.007 | F2: 0.008 | G2: 0.03 | H2: 0.03 | I2: 0.03 | J2: 0.005 | K2: 0.0005 | L2: 0.0005 | M2: 0.0001 | N2: 0.0001 | O2: 0.0006 | P2: 0.0079 | Q2: 0.0475 | R2: =SUM(M2:Q2) -> 0.0562 | S2: =906.49-2.78*(13)-439.3*(B2)+34.17*(C2)-36.7*(D2)-8.5*(G2)-51.2*(H2)-27.08*(I2)-63.48*(J2)-1765.95*(K2)-520.29*(L2)-2401.12*(M2)-1784.44*(N2)+21.89*(O2)+5300.15*(P2)-420.96*(Q2)+297.07*(B2^2)-16.4*(D2^2)+11668.54*(K2^2)+458.21*(SQRT(M2))-1142.45*(SQRT(P2))+298.91*(SQRT(Q2)) -> 750 | T2: =(B2)+(C2/30)+((D2+G2+I2)/20)+(H2/60)+(J2/15)+(L2/10)+(5*N2) -> 0.157 | U2: =B2+(D2+C2)/6+(I2+J2+L2)/5+(H2+G2)/15 -> 0.360 | V2: =0.75+(0.25*TANH(20*(B2-0.12))) -> 0.569 | W2: =C2/24+D2/6+G2/15+H2/20+(I2+J2+L2+K2)/5+5*N2 -> 0.255 | X2: =B2+V2*W2 -> 0.219 | Y2: =910-310*(B2)-80*(D2)-80*(J2)-55*(H2)-20*(G2)-15*(I2) -> 772 | Z2: =830-270*B2-90*D2-37*H2-70*I2-83*J2 -> 680 | AA2: =770-270*B2-90*D2-37*H2-70*I2-83*J2 -> 620 | AB2: =710-270*B2-90*D2-37*H2-70*I2-83*J2 -> 560 | AC2: =561-474*B2-33*D2-17*H2-17*I2-21*J2 -> 479 | AD2: =AB2-AC2 -> 82 | AE2: =Y2-Z2 -> 92 | AF2: =Y2-AA2 -> 152 | AG2: =Y2-AB2 -> 212 | AH2: 445 | AI2: 528 | AJ2: =AH2/AI2 -> 0.84 | AK2: 28 | AL2: 78 | AM2: -14 | AN2: -42 | AO2: O
A3: W | B3: 0.077 | C3: 0.27 | D3: 1.46 | E3: 0.007 | F3: 0.008 | G3: 0.03 | H3: 0.03 | I3: 0.03 | J3: 0.005 | K3: 0.0005 | L3: 0.0005 | M3: 0.0028 | N3: 0.0003 | O3: 0.0005 | P3: 0.0081 | Q3: 0.0459 | R3: 0.0576 | S3: =906.49-2.78*(13)-439.3*(B3)+34.17*(C3)-36.7*(D3)-8.5*(G3)-51.2*(H3)-27.08*(I3)-63.48*(J3)-1765.95*(K3)-520.29*(L3)-2401.12*(M3)-1784.44*(N3)+21.89*(O3)+5300.15*(P3)-420.96*(Q3)+297.07*(B3^2)-16.4*(D3^2)+11668.54*(K3^2)+458.21*(SQRT(M3))-1142.45*(SQRT(P3))+298.91*(SQRT(Q3)) -> 757 | T3: 0.164 | U3: 0.376 | V3: 0.576 | W3: 0.267 | X3: 0.231 | Y3: 766 | Z3: 674 | AA3: 614 | AB3: 554 | AC3: 475 | AD3: 79 | AE3: 92 | AF3: 152 | AG3: 212 | AH3: 471 | AI3: 544 | AJ3: 0.87 | AK3: 25 | AL3: 77 | AM3: -68 | AN3: -88 | AO3: W
A4: X | B4: 0.069 | C4: 0.45 | D4: 1.47 | E4: 0.006 | F4: 0.005 | G4: 0.03 | H4: 0.03 | I4: 0.03 | J4: 0.005 | K4: 0.0005 | L4: 0.0005 | M4: 0.041 | N4: 0.0002 | O4: 0.0001 | P4: 0.0077 | Q4: 0.0282 | R4: 0.0772 | S4: 736 | T4: 0.162 | U4: 0.400 | V4: 0.558 | W4: 0.275 | X4: 0.223 | Y4: 768 | Z4: 675 | AA4: 615 | AB4: 555 | AC4: 479 | AD4: 77 | AE4: 92 | AF4: 152 | AG4: 212 | AH4: 504 | AI4: 577 | AJ4: 0.87 | AK4: 26 | AL4: 80 | AM4: -61 | AN4: -77 | AO4: X
A5: Y | B5: 0.07 | C5: 0.45 | D5: 1.57 | E5: 0.01 | F5: 0.006 | G5: 0.03 | H5: 0.03 | I5: 0.03 | J5: 0.005 | K5: 0.0005 | L5: 0.0005 | M5: 0.039 | N5: 0.0039 | O5: 0.0013 | P5: 0.0083 | Q5: 0.0308 | R5: 0.0833 | S5: 724 | T5: 0.187 | U5: 0.418 | V5: 0.560 | W5: 0.311 | X5: 0.244 | Y5: 760 | Z5: 666 | AA5: 606 | AB5: 546 | AC5: 475 | AD5: 71 | AE5: 93 | AF5: 153 | AG5: 213 | AH5: 546 | AI5: 594 | AJ5: 0.92 | AK5: 26 | AL5: 73 | AM5: -84 | AN5: -114 | AO5: Y
A6: Z | B6: 0.072 | C6: 0.49 | D6: 1.56 | E6: 0.01 | F6: 0.007 | G6: 0.03 | H6: 0.03 | I6: 0.03 | J6: 0.005 | K6: 0.0005 | L6: 0.0005 | M6: 0.042 | N6: 0.0048 | O6: 0.016 | P6: 0.0067 | Q6: 0.0438 | R6: 0.1133 | S6: 727 | T6: 0.194 | U6: 0.425 | V6: 0.564 | W6: 0.315 | X6: 0.250 | Y6: 760 | Z6: 667 | AA6: 607 | AB6: 547 | AC6: 474 | AD6: 72 | AE6: 93 | AF6: 153 | AG6: 213 | AH6: 610 | AI6: 640 | AJ6: 0.95 | AK6: 27 | AL6: 73 | AM6: -83 | AN6: -100 | AO6: Z
A7: T | B7: 0.064 | C7: 0.4 | D7: 1.49 | E7: 0.005 | F7: 0.007 | G7: 0.03 | H7: 0.03 | I7: 0.03 | J7: 0.005 | K7: 0.0005 | L7: 0.0005 | M7: 0.0005 | N7: 0.0195 | O7: 0.0005 | P7: 0.0085 | Q7: 0.0503 | R7: 0.0793 | S7: 722 | T7: 0.253 | U7: 0.390 | V7: 0.548 | W7: 0.373 | X7: 0.269 | Y7: 768 | Z7: 675 | AA7: 615 | AB7: 555 | AC7: 480 | AD7: 75 | AE7: 93 | AF7: 153 | AG7: 213 | AH7: 478 | AI7: 561 | AJ7: 0.85 | AK7: 22 | AL7: 74 | AM7: -34 | AN7: -75 | AO7: T
A8: U | B8: 0.073 | C8: 0.4 | D8: 1.52 | E8: 0.011 | F8: 0.006 | G8: 0.03 | H8: 0.03 | I8: 0.03 | J8: 0.005 | K8: 0.0005 | L8: 0.0005 | M8: 0.039 | N8: 0.0158 | O8: 0.0005 | P8: 0.0084 | Q8: 0.029 | R8: 0.0927 | S8: 703 | T8: 0.245 | U8: 0.404 | V8: 0.566 | W8: 0.360 | X8: 0.277 | Y8: 763 | Z8: 670 | AA8: 610 | AB8: 550 | AC8: 475 | AD8: 75 | AE8: 93 | AF8: 153 | AG8: 213 | AH8: 517 | AI8: 586 | AJ8: 0.88 | AK8: 23 | AL8: 78 | AM8: -53 | AN8: -80 | AO8: U
A9: V | B9: 0.078 | C9: 0.6 | D9: 1.44 | E9: 0.007 | F9: 0.006 | G9: 0.03 | H9: 0.03 | I9: 0.03 | J9: 0.005 | K9: 0.0005 | L9: 0.0005 | M9: 0.054 | N9: 0.0056 | O9: 0.058 | P9: 0.0041 | Q9: 0.044 | R9: 0.1657 | S9: 728 | T9: 0.202 | U9: 0.429 | V9: 0.579 | W9: 0.304 | X9: 0.254 | Y9: 768 | Z9: 676 | AA9: 616 | AB9: 556 | AC9: 475 | AD9: 80 | AE9: 92 | AF9: 152 | AG9: 212 | AH9: 668 | AI9: 732 | AJ9: 0.91 | AK9: 20 | AL9: 70 | AM9: -12 | AN9: -46 | AO9: V
S10: 703-757
A11: O1 | B11: 0.074 | C11: 0.28 | D11: 1.58 | E11: 0.008 | F11: 0.008 | G11: 0.03 | H11: 0.03 | I11: 0.03 | J11: 0.005 | K11: 0.0005 | L11: 0.0005 | M11: 0.0005 | N11: 0.0005 | O11: 0.0005 | P11: 0.0145 | Q11: 0.0404 | R11: 0.0564 | S11: 737 | T11: =(B11)+(C11/30)+((D11+G11+I11)/20)+(H11/60)+(J11/15)+(L11/10)+(5*N11) -> 0.169 | U11: =B11+(D11+C11)/6+(I11+J11+L11)/5+(H11+G11)/15 -> 0.395 | V11: =0.75+(0.25*TANH(20*(B11-0.12))) -> 0.569 | W11: =C11/24+D11/6+G11/15+H11/20+(I11+J11+L11+K11)/5+5*N11 -> 0.288 | X11: =B11+V11*W11 -> 0.238 | Y11: =910-310*(B11)-80*(D11)-80*(J11)-55*(H11)-20*(G11)-15*(I11) -> 758 | Z11: =830-270*B11-90*D11-37*H11-70*I11-83*J11 -> 664 | AA11: =770-270*B11-90*D11-37*H11-70*I11-83*J11 -> 604 | AB11: =710-270*B11-90*D11-37*H11-70*I11-83*J11 -> 544 | AC11: =561-474*B11-33*D11-17*H11-17*I11-21*J11 -> 473 | AD11: =AB11-AC11 -> 72 | AE11: =Y11-Z11 -> 93 | AF11: =Y11-AA11 -> 153 | AG11: =Y11-AB11 -> 213 | AH11: 473 | AI11: 566 | AJ11: 0.84 | AK11: 24 | AL11: 77 | AM11: 5 | AN11: -24 | AO11: O1
A12: W1 | B12: 0.068 | C12: 0.28 | D12: 1.4 | E12: 0.008 | F12: 0.01 | G12: 0.03 | H12: 0.03 | I12: 0.03 | J12: 0.005 | K12: 0.0005 | L12: 0.0005 | M12: 0.0031 | N12: 0.0005 | O12: 0.0005 | P12: 0.0148 | Q12: 0.0409 | R12: 0.0598 | S12: 764 | T12: 0.154 | U12: 0.359 | V12: 0.556 | W12: 0.258 | X12: 0.211 | Y12: 774 | Z12: 682 | AA12: 622 | AB12: 562 | AC12: 481 | AD12: 81 | AE12: 92 | AF12: 152 | AG12: 212 | AH12: 482 | AI12: 545 | AJ12: 0.88 | AK12: 28 | AL12: 79 | AM12: -41 | AN12: -63 | AO12: W1
A13: X1 | B13: 0.066 | C13: 0.47 | D13: 1.48 | E13: 0.011 | F13: 0.007 | G13: 0.03 | H13: 0.03 | I13: 0.03 | J13: 0.005 | K13: 0.0005 | L13: 0.0005 | M13: 0.041 | N13: 0.0002 | O13: 0.0005 | P13: 0.0164 | Q13: 0.0285 | R13: 0.0866 | S13: 737 | T13: 0.161 | U13: 0.402 | V13: 0.552 | W13: 0.278 | X13: 0.219 | Y13: 768 | Z13: 675 | AA13: 615 | AB13: 555 | AC13: 480 | AD13: 76 | AE13: 93 | AF13: 153 | AG13: 213 | AH13: 584 | AI13: 639 | AJ13: 0.91 | AK13: 23 | AL13: 75 | AM13: -44 | AN13: -72 | AO13: X1
A14: Y1 | B14: 0.069 | C14: 0.34 | D14: 1.48 | E14: 0.01 | F14: 0.007 | G14: 0.03 | H14: 0.03 | I14: 0.03 | J14: 0.005 | K14: 0.0005 | L14: 0.0005 | M14: 0.037 | N14: 0.004 | O14: 0.0005 | P14: 0.0149 | Q14: 0.0281 | R14: 0.0845 | S14: 729 | T14: 0.178 | U14: 0.383 | V14: 0.558 | W14: 0.292 | X14: 0.232 | Y14: 767 | Z14: 675 | AA14: 615 | AB14: 555 | AC14: 478 | AD14: 76 | AE14: 93 | AF14: 153 | AG14: 213 | AH14: 532 | AI14: 585 | AJ14: 0.91 | AK14: 27 | AL14: 74 | AM14: -48 | AN14: -73 | AO14: Y1
A15: Z1 | B15: 0.07 | C15: 0.43 | D15: 1.45 | E15: 0.01 | F15: 0.006 | G15: 0.03 | H15: 0.03 | I15: 0.03 | J15: 0.005 | K15: 0.0005 | L15: 0.0005 | M15: 0.047 | N15: 0.0037 | O15: 0.017 | P15: 0.013 | Q15: 0.0439 | R15: 0.1246 | S15: 727 | T15: 0.179 | U15: 0.394 | V15: 0.560 | W15: 0.289 | X15: 0.232 | Y15: 769 | Z15: 677 | AA15: 617 | AB15: 557 | AC15: 479 | AD15: 78 | AE15: 92 | AF15: 152 | AG15: 212 | AH15: 532 | AI15: 584 | AJ15: 0.91 | AK15: 28 | AL15: 77 | AM15: -43 | AN15: -63 | AO15: Z1
A16: T1 | B16: 0.07 | C16: 0.39 | D16: 1.55 | E16: 0.007 | F16: 0.007 | G16: 0.03 | H16: 0.03 | I16: 0.03 | J16: 0.005 | K16: 0.0005 | L16: 0.0005 | M16: 0.0007 | N16: 0.016 | O16: 0.0006 | P16: 0.0144 | Q16: 0.0396 | R16: 0.0713 | S16: 718 | T16: 0.244 | U16: 0.404 | V16: 0.560 | W16: 0.365 | X16: 0.274 | Y16: 761 | Z16: 668 | AA16: 608 | AB16: 548 | AC16: 476 | AD16: 72 | AE16: 93 | AF16: 153 | AG16: 213 | AH16: 474 | AI16: 562 | AJ16: 0.84 | AK16: 21 | AL16: 67 | AM16: -18 | AN16: -51 | AO16: T1
A17: U1 | B17: 0.066 | C17: 0.35 | D17: 1.39 | E17: 0.009 | F17: 0.006 | G17: 0.03 | H17: 0.03 | I17: 0.03 | J17: 0.005 | K17: 0.0005 | L17: 0.0005 | M17: 0.036 | N17: 0.0158 | O17: 0.0005 | P17: 0.0138 | Q17: 0.029 | R17: 0.0951 | S17: 718 | T17: 0.230 | U17: 0.367 | V17: 0.552 | W17: 0.336 | X17: 0.251 | Y17: 775 | Z17: 683 | AA17: 623 | AB17: 563 | AC17: 483 | AD17: 81 | AE17: 92 | AF17: 152 | AG17: 212 | AH17: 489 | AI17: 557 | AJ17: 0.88 | AK17: 23 | AL17: 73 | AM17: -67 | AN17: -89 | AO17: U1
A18: V1 | B18: 0.067 | C18: 0.63 | D18: 1.44 | E18: 0.01 | F18: 0.005 | G18: 0.03 | H18: 0.03 | I18: 0.03 | J18: 0.005 | K18: 0.0005 | L18: 0.0005 | M18: 0.048 | N18: 0.0044 | O18: 0.056 | P18: 0.012 | Q18: 0.0473 | R18: 0.1677 | S18: 735 | T18: 0.186 | U18: 0.423 | V18: 0.554 | W18: 0.299 | X18: 0.232 | Y18: 771 | Z18: 679 | AA18: 619 | AB18: 559 | AC18: 481 | AD18: 78 | AE18: 92 | AF18: 152 | AG18: 212 | AH18: 571 | AI18: 644 | AJ18: 0.89 | AK18: 25 | AL18: 74 | AM18: -64 | AN18: -93 | AO18: V1
S19: 718-764
A20: O2 | B20: 0.073 | C20: 0.27 | D20: 1.66 | E20: 0.008 | F20: 0.009 | G20: 0.03 | H20: 0.03 | I20: 0.03 | J20: 0.005 | K20: 0.0005 | L20: 0.0005 | M20: 0.0005 | N20: 0.0005 | O20: 0.0005 | P20: 0.0235 | Q20: 0.0399 | R20: 0.0649 | S20: 739 | T20: 0.171 | U20: 0.406 | V20: 0.566 | W20: 0.301 | X20: 0.243 | Y20: 751 | Z20: 657 | AA20: 597 | AB20: 537 | AC20: 470 | AD20: 67 | AE20: 94 | AF20: 154 | AG20: 214 | AH20: 505 | AI20: 607 | AJ20: 0.83 | AK20: 24 | AL20: 76 | AM20: 20 | AN20: -16 | AO20: O2
A21: W2 | B21: 0.069 | C21: 0.26 | D21: 1.45 | E21: 0.009 | F21: 0.01 | G21: 0.03 | H21: 0.03 | I21: 0.03 | J21: 0.005 | K21: 0.0005 | L21: 0.0005 | M21: 0.0029 | N21: 0.0005 | O21: 0.0002 | P21: 0.0226 | Q21: 0.0391 | R21: 0.0653 | S21: 766 | T21: 0.157 | U21: 0.365 | V21: 0.558 | W21: 0.266 | X21: 0.217 | Y21: 770 | Z21: 677 | AA21: 617 | AB21: 557 | AC21: 479 | AD21: 78 | AE21: 92 | AF21: 152 | AG21: 212 | AH21: 492 | AI21: 581 | AJ21: 0.85 | AK21: 26 | AL21: 78 | AM21: -24 | AN21: -48 | AO21: W2
A22: X2 | B22: 0.068 | C22: 0.47 | D22: 1.46 | E22: 0.006 | F22: 0.007 | G22: 0.03 | H22: 0.03 | I22: 0.03 | J22: 0.005 | K22: 0.0005 | L22: 0.0005 | M22: 0.045 | N22: 0.0002 | O22: 0.0005 | P22: 0.0249 | Q22: 0.0297 | R22: 0.1003 | S22: 745 | T22: 0.162 | U22: 0.401 | V22: 0.556 | W22: 0.275 | X22: 0.221 | Y22: 769 | Z22: 677 | AA22: 617 | AB22: 557 | AC22: 479 | AD22: 77 | AE22: 92 | AF22: 152 | AG22: 212 | AH22: 578 | AI22: 631 | AJ22: 0.92 | AK22: 25 | AL22: 78 | AM22: -30 | AN22: -58 | AO22: X2
A23: Y2 | B23: 0.069 | C23: 0.36 | D23: 1.51 | E23: 0.008 | F23: 0.007 | G23: 0.03 | H23: 0.03 | I23: 0.03 | J23: 0.005 | K23: 0.0005 | L23: 0.0005 | M23: 0.041 | N23: 0.0044 | O23: 0.0005 | P23: 0.0232 | Q23: 0.0292 | R23: 0.0983 | S23: 731 | T23: 0.182 | U23: 0.392 | V23: 0.558 | W23: 0.299 | X23: 0.236 | Y23: 765 | Z23: 672 | AA23: 612 | AB23: 552 | AC23: 477 | AD23: 75 | AE23: 93 | AF23: 153 | AG23: 213 | AH23: 539 | AI23: 605 | AJ23: 0.89 | AK23: 24 | AL23: 72 | AM23: -24 | AN23: -56 | AO23: Y2
A24: Z2 | B24: 0.068 | C24: 0.5 | D24: 1.45 | E24: 0.011 | F24: 0.006 | G24: 0.03 | H24: 0.03 | I24: 0.03 | J24: 0.005 | K24: 0.0005 | L24: 0.0005 | M24: 0.047 | N24: 0.0045 | O24: 0.018 | P24: 0.023 | Q24: 0.044 | R24: 0.1365 | S24: 739 | T24: 0.184 | U24: 0.404 | V24: 0.556 | W24: 0.296 | X24: 0.232 | Y24: 770 | Z24: 678 | AA24: 618 | AB24: 558 | AC24: 480 | AD24: 78 | AE24: 92 | AF24: 152 | AG24: 212 | AH24: 493 | AI24: 583 | AJ24: 0.85 | AK24: 27 | AL24: 69 | AM24: 13 | AN24: -18 | AO24: Z2
A25: T2 | B25: 0.064 | C25: 0.36 | D25: 1.43 | E25: 0.008 | F25: 0.008 | G25: 0.03 | H25: 0.03 | I25: 0.03 | J25: 0.005 | K25: 0.0005 | L25: 0.0005 | M25: 0.0005 | N25: 0.016 | O25: 0.0005 | P25: 0.0233 | Q25: 0.0426 | R25: 0.0829 | S25: 739 | T25: 0.231 | U25: 0.373 | V25: 0.548 | W25: 0.344 | X25: 0.253 | Y25: 773 | Z25: 680 | AA25: 620 | AB25: 560 | AC25: 482 | AD25: 78 | AE25: 92 | AF25: 152 | AG25: 212 | AH25: 439 | AI25: 528 | AJ25: 0.83 | AK25: 22 | AL25: 71 | AM25: -12 | AN25: -43 | AO25: T2
A26: U2 | B26: 0.066 | C26: 0.36 | D26: 1.4 | E26: 0.012 | F26: 0.007 | G26: 0.03 | H26: 0.03 | I26: 0.03 | J26: 0.005 | K26: 0.0005 | L26: 0.0005 | M26: 0.039 | N26: 0.0167 | O26: 0.0005 | P26: 0.0217 | Q26: 0.0297 | R26: 0.1076 | S26: 720 | T26: 0.235 | U26: 0.370 | V26: 0.552 | W26: 0.343 | X26: 0.255 | Y26: 774 | Z26: 683 | AA26: 623 | AB26: 563 | AC26: 482 | AD26: 80 | AE26: 92 | AF26: 152 | AG26: 212 | AH26: 474 | AI26: 541 | AJ26: 0.88 | AK26: 28 | AL26: 73 | AM26: -52 | AN26: -81 | AO26: U2
A27: V2 | B27: 0.069 | C27: 0.6 | D27: 1.42 | E27: 0.012 | F27: 0.006 | G27: 0.03 | H27: 0.03 | I27: 0.03 | J27: 0.005 | K27: 0.0005 | L27: 0.0005 | M27: 0.043 | N27: 0.0035 | O27: 0.056 | P27: 0.0235 | Q27: 0.047 | R27: 0.173 | S27: 754 | T27: 0.181 | U27: 0.417 | V27: 0.558 | W27: 0.290 | X27: 0.231 | Y27: 772 | Z27: 680 | AA27: 620 | AB27: 560 | AC27: 480 | AD27: 80 | AE27: 92 | AF27: 152 | AG27: 212 | AH27: 529 | AI27: 591 | AJ27: 0.90 | AK27: 26 | AL27: 74 | AM27: -45 | AN27: -70 | AO27: V2
S28: 720-766
B29: Carbon | C29: Silicon | D29: Manganese | E29: Phosphorus | F29: Sulfur | G29: Copper | H29: Nickel | I29: Chromium | J29: Molybdenum | K29: Niobium | L29: Vanadium | M29: Titanium | N29: Boron | O29: Aluminum | P29: Nitrogen | Q29: Oxygen | R29: (Ti+B+Al+N+O) | S29: New Ar3 (ºC) | T29: Pcm | U29: CE | V29: A(C) | W29: EMU | X29: CEN | Y29: Ar3m (ºC) | Z29: Bs (ºC) | AA29: B50 (ºC) | AB29: Bf (ºC) | AC29: Ms (ºC) | AD29: Bf-Ms (ºC) | AE29: Ar3m -Bs (ºC) | AF29: Ar3m -B50 (ºC) | AG29: Ar3m -Bf (ºC) | AH29: MPa | AI29: MPa | AJ29: YS/UTS | AK29: % | AL29: % | AM29: CVN 100J | AN29: CVN 28J
A30: Minimum | B30: =MIN(B2:B28) -> 0.064 | C30: 0.25 | D30: 1.39 | E30: 0.005 | F30: 0.005 | G30: 0.03 | H30: 0.03 | I30: 0.03 | J30: 0.005 | K30: 0.0005 | L30: 0.0005 | M30: 0.0001 | N30: 0.0001 | O30: 0.0001 | P30: 0.0041 | Q30: 0.0281 | R30: 0.0562 | S30: 703 | T30: 0.154 | U30: 0.359 | V30: 0.548 | W30: 0.255 | X30: 0.211 | Y30: 751 | Z30: 657 | AA30: 597 | AB30: 537 | AC30: 470 | AD30: 67 | AE30: 92 | AF30: 152 | AG30: 212 | AH30: 439 | AI30: 528 | AJ30: 0.83 | AK30: 20.3 | AL30: 67.4 | AM30: -84 | AN30: -114 | AO30: Minimum
A31: Maximum | B31: =MAX(B2:B28) -> 0.078 | C31: 0.63 | D31: 1.66 | E31: 0.012 | F31: 0.01 | G31: 0.03 | H31: 0.03 | I31: 0.03 | J31: 0.005 | K31: 0.0005 | L31: 0.0005 | M31: 0.054 | N31: 0.0195 | O31: 0.058 | P31: 0.0249 | Q31: 0.0503 | R31: 0.173 | S31: 766 | T31: 0.253 | U31: 0.429 | V31: 0.579 | W31: 0.373 | X31: 0.277 | Y31: 775 | Z31: 683 | AA31: 623 | AB31: 563 | AC31: 483 | AD31: 82 | AE31: 94 | AF31: 154 | AG31: 214 | AH31: 668 | AI31: 732 | AJ31: 0.95 | AK31: 28.4 | AL31: 79.8 | AM31: 20 | AN31: -16 | AO31: Maximum
A32: Average | B32: =AVERAGE(B2:B28) -> 0.070 | C32: 0.403 | D32: 1.478 | E32: 0.009 | F32: 0.007 | G32: 0.030 | H32: 0.030 | I32: 0.03 | J32: 0.005 | K32: 0.0005 | L32: 0.0005 | M32: 0.0271 | N32: 0.0059 | O32: 0.0096 | P32: 0.0150 | Q32: 0.0383 | R32: 0.0958 | S32: =906.49-(2.78*13)-439.3*(B32)+34.17*(C32)-36.7*(D32)-8.5*(G32)-51.2*(H32)-27.08*(I32)-63.48*(J32)-1765.95*(K32)-520.29*(L32)-2401.12*(M32)-1784.44*(N32)+21.89*(O32)+5300.15*(P32)-420.96*(Q32)+297.07*(B32*B32)-16.4*(D32*D32)+11668.54*(K32*K32)+458.21*SQRT(M32)-1142.45*SQRT(P32)+298.91*SQRT(Q32) -> 743 | T32: =(B32)+(C32/30)+((D32+G32+I32)/20)+(H32/60)+(J32/15)+(L32/10)+(5*N32) -> 0.190 | U32: =B32+(D32+C32)/6+(I32+J32+L32)/5+(H32+G32)/15 -> 0.394 | V32: =0.75+(0.25*TANH(20*(B32-0.12))) -> 0.559 | W32: =C32/24+D32/6+G32/15+H32/20+(I32+J32+L32+K32)/5+5*N32 -> 0.303 | X32: =B32+V32*W32 -> 0.239 | Y32: =910-310*(B32)-80*(D32)-80*(J32)-55*(H32)-20*(G32)-15*(I32) -> 767 | Z32: =830-270*B32-90*D32-37*H32-70*I32-83*J32 -> 675 | AA32: =770-270*B32-90*D32-37*H32-70*I32-83*J32 -> 615 | AB32: =710-270*B32-90*D32-37*H32-70*I32-83*J32 -> 555 | AC32: =561-474*B32-33*D32-17*H32-17*I32-21*J32 -> 478 | AD32: =AB32-AC32 -> 77 | AE32: =Y32-Z32 -> 93 | AF32: =Y32-AA32 -> 153 | AG32: =Y32-AB32 -> 213
A33: Balanced | B33: 0.080 | C33: 0.50 | D33: 1.80 | E33: =AVERAGE(E3:E29) -> 0.009 | F33: =AVERAGE(F3:F29) -> 0.007 | G33: 0.03 | H33: 0.60 | I33: =AVERAGE(I3:I29) -> 0.03 | J33: 0.010 | K33: 0.0005 | L33: 0.0005 | M33: 0.0030 | N33: 0.0010 | O33: 0.0010 | P33: 0.0060 | Q33: 0.0250 | R33: =AVERAGE(R3:R29) -> 0.0976 | S33: =906.49-(2.78*13)-439.3*(B33)+34.17*(C33)-36.7*(D33)-8.5*(G33)-51.2*(H33)-27.08*(I33)-63.48*(J33)-1765.95*(K33)-520.29*(L33)-2401.12*(M33)-1784.44*(N33)+21.89*(O33)+5300.15*(P33)-420.96*(Q33)+297.07*(B33*B33)-16.4*(D33*D33)+11668.54*(K33*K33)+458.21*SQRT(M33)-1142.45*SQRT(P33)+298.91*SQRT(Q33) -> 698 | T33: =(B33)+(C33/30)+((D33+G33+I33)/20)+(H33/60)+(J33/15)+(L33/10)+(5*N33) -> 0.205 | U33: =B33+(D33+C33)/6+(I33+J33+L33)/5+(H33+G33)/15 -> 0.513 | V33: =0.75+(0.25*TANH(20*(B33-0.12))) -> 0.584 | W33: =C33/24+D33/6+G33/15+H33/20+(I33+J33+L33+K33)/5+5*N33 -> 0.366 | X33: =B33+V33*W33 -> 0.294 | Y33: =910-310*(B33)-80*(D33)-80*(J33)-55*(H33)-20*(G33)-15*(I33) -> 706 | Z33: =830-270*B33-90*D33-37*H33-70*I33-83*J33 -> 621 | AA33: =770-270*B33-90*D33-37*H33-70*I33-83*J33 -> 561 | AB33: =710-270*B33-90*D33-37*H33-70*I33-83*J33 -> 501 | AC33: =561-474*B33-33*D33-17*H33-17*I33-21*J33 -> 453 | AD33: =AB33-AC33 -> 49 | AE33: =Y33-Z33 -> 85 | AF33: =Y33-AA33 -> 145 | AG33: =Y33-AB33 -> 205
A35: Heat ID | B35: Carbon | C35: Silicon | D35: Manganese | E35: Phosphorus | F35: Sulfur | G35: Copper | H35: Nickel | I35: Chromium | J35: Molybdenum | K35: Niobium | L35: Vanadium | M35: Titanium | N35: Boron | O35: Aluminum | P35: Nitrogen | Q35: Oxygen | R35: (Ti+B+Al+N+O) | S35: New Ar3 (ºC) | T35: Pcm | U35: CE | V35: A(C) | W35: EMU | X35: CEN | Y35: Ar3m (ºC) | Z35: Bs (ºC) | AA35: B50 (ºC) | AB35: Bf (ºC) | AC35: Ms (ºC) | AD35: Bf-Ms (ºC) | AE35: Ar3m -Bs (ºC) | AF35: Ar3m -B50 (ºC) | AG35: Ar3m -Bf (ºC) | AH35: YS (MPa) | AI35: UTS (MPa) | AJ35: YS/UTS | AK35: El (%) | AL35: RA (%) | AM35: T 100J | AN35: T 28J | AO35: Heat ID
A36: G69 | B36: 0.09 | C36: 0.43 | D36: 1.32 | E36: 0.007 | F36: 0.007 | G36: 0.09 | H36: 1.43 | I36: 0.03 | J36: 0.55 | K36: 0.001 | L36: 0.00 | M36: 0.019 | N36: 0.0019 | O36: 0.001 | P36: 0.007 | Q36: 0.029 | R36: =SUM(M36:Q36) -> 0.0579 | S36: =906.49-2.78*(38.46)-439.3*(B36)+34.17*(C36)-36.7*(D36)-8.5*(G36)-51.2*(H36)-27.08*(I36)-63.48*(J36)-1765.95*(K36)-520.29*(L36)-2401.12*(M36)-1784.44*(N36)+21.89*(O36)+5300.15*(P36)-420.96*(Q36)+297.07*(B36^2)-16.4*(D36^2)+11668.54*(K36^2)+458.21*(SQRT(M36))-1142.45*(SQRT(P36))+298.91*(SQRT(Q36)) -> 583 | T36: =(B36)+(C36/30)+((D36+G36+I36)/20)+(H36/60)+(J36/15)+(L36/10)+(5*N36) -> 0.246 | U36: =B36+(D36+C36)/6+(I36+J36+L36)/5+(H36+G36)/15 -> 0.599 | V36: =0.75+(0.25*TANH(20*(B36-0.12))) -> 0.616 | W36: =C36/24+D36/6+G36/15+H36/20+(I36+J36+L36+K36)/5+5*N36 -> 0.441 | X36: =B36+V36*W36 -> 0.362 | Y36: =910-310*(B36)-80*(D36)-80*(J36)-55*(H36)-20*(G36)-15*(I36) -> 652 | Z36: =830-270*B36-90*D36-37*H36-70*I36-83*J36 -> 586 | AA36: =770-270*B36-90*D36-37*H36-70*I36-83*J36 -> 526 | AB36: =710-270*B36-90*D36-37*H36-70*I36-83*J36 -> 466 | AC36: =561-474*B36-33*D36-17*H36-17*I36-21*J36 -> 438 | AD36: =AB36-AC36 -> 28 | AE36: =Y36-Z36 -> 65 | AF36: =Y36-AA36 -> 125 | AG36: =Y36-AB36 -> 185 | AO36: G69
S38: T. Yoon, Y.I. Park, J. Kim, J.H. Kim, (2025). Inverse Neural Network Approach for Optimizing Chemical Composition in Shielded Metal Arc Weld Metals. Materials, 18(11), p.2592, https://doi.org/10.3390/ma18112592
S39: Element | T39: Trial 1 | U39: Trial 2 | V39: Trial 3 | W39: Trial 4 | X39: Trial 5 | Y39: Trial 6 | Z39: Trial 7 | AA39: Trial 8 | AB39: Trial 9 | AC39: Trial 10
S40: C (wt%) | T40: 0.035 | U40: 0.038 | V40: 0.038 | W40: 0.035 | X40: 0.035 | Y40: 0.041 | Z40: 0.038 | AA40: 0.037 | AB40: 0.039 | AC40: 0.035
S41: Si (wt%) | T41: 0.731 | U41: 1.081 | V41: 0.823 | W41: 0.437 | X41: 0.926 | Y41: 0.036 | Z41: 0.016 | AA41: 0.648 | AB41: 0.019 | AC41: 0.033
S42: Mn (wt%) | T42: 0.914 | U42: 0.846 | V42: 1.334 | W42: 1.887 | X42: 1.142 | Y42: 0.277 | Z42: 0.242 | AA42: 1.592 | AB42: 0.589 | AC42: 1.202
S43: P (wt%) | T43: 0.003 | U43: 0.006 | V43: 0.003 | W43: 0.008 | X43: 0.003 | Y43: 0.003 | Z43: 0.003 | AA43: 0.003 | AB43: 0.009 | AC43: 0.003
S44: S (wt%) | T44: 0.0051 | U44: 0.003 | V44: 0.003 | W44: 0.003 | X44: 0.0073 | Y44: 0.003 | Z44: 0.003 | AA44: 0.008 | AB44: 0.003 | AC44: 0.0034
S45: Cu (wt%) | T45: 0.13 | U45: 0.02 | V45: 0.7 | W45: 0.12 | X45: 0.22 | Y45: 0.08 | Z45: 0.02 | AA45: 0.34 | AB45: 0.06 | AC45: 0.08
S46: Ni (wt%) | T46: 2.732 | U46: 0.078 | V46: 4.02 | W46: 0.254 | X46: 0.048 | Y46: 0.058 | Z46: 0.058 | AA46: 2.743 | AB46: 1.933 | AC46: 0.061
S47: Cr (wt%) | T47: 0.061 | U47: 0.065 | V47: 0.245 | W47: 0.262 | X47: 0.091 | Y47: 0.104 | Z47: 0.062 | AA47: 0.036 | AB47: 0.104 | AC47: 0.266
S48: Mo (wt%) | T48: 0.055 | U48: 0.121 | V48: 0.062 | W48: 0.522 | X48: 0.041 | Y48: 0.024 | Z48: 0.03 | AA48: 0.017 | AB48: 0.04 | AC48: 0.005
S49: Nb (ppm) | T49: 7.32 | U49: 539.03 | V49: 12.17 | W49: 7.15 | X49: 19.69 | Y49: 3.05 | Z49: 630.31 | AA49: 62.81 | AB49: 5.72 | AC49: 43.33
S50: V (ppm) | T50: 119.15 | U50: 25.26 | V50: 24.23 | W50: 530.65 | X50: 191.64 | Y50: 307.96 | Z50: 144.5 | AA50: 27.04 | AB50: 356 | AC50: 122.74
S51: Ti (ppm) | T51: 301.44 | U51: 79.08 | V51: 497.91 | W51: 27.84 | X51: 402.34 | Y51: 357.53 | Z51: 283.78 | AA51: 533.76 | AB51: 48.53 | AC51: 670.27
S52: B (ppm) | T52: 175.5 | U52: 9.03 | V52: 121.14 | W52: 4.71 | X52: 185.06 | Y52: 167.14 | Z52: 70.11 | AA52: 143.32 | AB52: 34.99 | AC52: 130.49
S53: Al (ppm) | T53: 256.44 | U53: 56.83 | V53: 558.31 | W53: 5.13 | X53: 262.96 | Y53: 35.41 | Z53: 25.38 | AA53: 411.21 | AB53: 5.27 | AC53: 155.95
S54: N (ppm) | T54: 120.38 | U54: 111.47 | V54: 136.52 | W54: 152.45 | X54: 152.41 | Y54: 195.66 | Z54: 44.95 | AA54: 227.48 | AB54: 126.85 | AC54: 249.63
S55: O (ppm) | T55: 283.86 | U55: 235.56 | V55: 253.61 | W55: 273.91 | X55: 254.92 | Y55: 304 | Z55: 260.96 | AA55: 220.8 | AB55: 423.59 | AC55: 244.35
S56: Ti+B+Al+N+O (ppm) | T56: =SUM(T51:T55) -> 1137.62 | U56: =SUM(U51:U55) -> 491.97 | V56: 1567.49 | W56: 464.04 | X56: 1257.69 | Y56: 1059.74 | Z56: 685.18 | AA56: 1536.57 | AB56: 639.23 | AC56: 1450.69
A83: Ar3 (°C) = 910 – (310 x C) – (80 x Mn) – (80 x Mo) – (55 x Ni) – (20 x Cu) – (15 x Cr)
A84: BS (°C) = 830 – (270 × C) – (90 × Mn) – (37 × Ni) – (70 × Cr) – (83 × Mo)
A85: B50 (°C) = 770 – (270 × C) – (90 × Mn) – (37 × Ni) – (70 × Cr) – (83 × Mo)
A86: BF (°C) = 710 – (270 × C) – (90 × Mn) – (37 × Ni) – (70 × Cr) – (83 × Mo)
A87: MS (°C) = 561 – (474 × C) – (33 × Mn)– (17 × Ni) – (17 × Cr) – (21 × Mo)
A89: 𝑃 cm = C+Si/30+(Mn+Cu+Cr)/20+Ni/60+Mo/15+V/10+(5×B)
A90: CEIIW = C+(Mn+Si)/6+(Cr+Mo+V)/5+(Ni+Cu)/15
A91: CEN = C + {A(C) × EMU}
A92: 𝐴 (C) = 0.75 + 0.25tanh [20 × (C − 0.12)]
A93: EMU = {Si/24 + Mn/6 + Cu/15 + Ni/20 + (Cr + Mo + V + Nb)/5 + (5 x B)}

Sheet 33 Selected WMs
A1: Heat ID | B1: Carbon | C1: Silicon | D1: Manganese | E1: Phosphorus | F1: Sulfur | G1: Copper | H1: Nickel | I1: Chromium | J1: Molybdenum | K1: Niobium | L1: Vanadium | M1: Titanium | N1: Boron | O1: Aluminum | P1: Nitrogen | Q1: Oxygen | R1: (Ti+B+Al+N+O) | S1: New Ar3 (ºC) | T1: Pcm | U1: CE | V1: A(C) | W1: EMU | X1: CEN | Y1: Ar3m (ºC) | Z1: Bs (ºC) | AA1: B50 (ºC) | AB1: Bf (ºC) | AC1: Ms (ºC) | AD1: Bf-Ms (ºC) | AE1: Ar3m -Bs (ºC) | AF1: Ar3m -B50 (ºC) | AG1: Ar3m -Bf (ºC) | AH1: YS (MPa) | AI1: UTS (MPa) | AJ1: YS/UTS | AK1: El (%) | AL1: RA (%) | AM1: T 100J | AN1: T 28J | AO1: Heat ID
A2: ACuTi/Aplus | B2: 0.063 | C2: 0.3 | D2: 0.64 | E2: 0.008 | F2: 0.008 | G2: 0.53 | H2: 0.03 | I2: 0.03 | J2: 0.005 | K2: 0.0005 | L2: 0.0005 | M2: 0.0043 | N2: 0.0002 | O2: 0.0005 | P2: 0.0074 | Q2: 0.0453 | R2: =SUM(M2:Q2) -> 0.0577 | S2: =906.49-(2.78*13)-439.3*(B2)+34.17*(C2)-36.7*(D2)-8.5*(G2)-51.2*(H2)-27.08*(I2)-63.48*(J2)-1765.95*(K2)-520.29*(L2)-2401.12*(M2)-1784.44*(N2)+21.89*(O2)+5300.15*(P2)-420.96*(Q2)+297.07*(B2*B2)-16.4*(D2*D2)+11668.54*(K2*K2)+458.21*SQRT(M2)-1142.45*SQRT(P2)+298.91*SQRT(Q2) -> 820 | T2: =(B2)+(C2/30)+((D2+G2+I2)/20)+(H2/60)+(J2/15)+(L2/10)+(5*N2) -> 0.135 | U2: =B2+(D2+C2)/6+(I2+J2+L2)/5+(H2+G2)/15 -> 0.264 | V2: =0.75+(0.25*TANH(20*(B2-0.12))) -> 0.546 | W2: =C2/24+D2/6+G2/15+H2/20+(I2+J2+L2+K2)/5+5*N2 -> 0.164 | X2: =B2+V2*W2 -> 0.153 | Y2: =910-310*(B2)-80*(D2)-80*(J2)-55*(H2)-20*(G2)-15*(I2) -> 826 | Z2: =830-270*B2-90*D2-37*H2-70*I2-83*J2 -> 752 | AA2: =770-270*B2-90*D2-37*H2-70*I2-83*J2 -> 692 | AB2: =710-270*B2-90*D2-37*H2-70*I2-83*J2 -> 632 | AC2: =561-474*B2-33*D2-17*H2-17*I2-21*J2 -> 509 | AD2: =AB2-AC2 -> 123 | AE2: =Y2-Z2 -> 74 | AF2: =Y2-AA2 -> 134 | AG2: =Y2-AB2 -> 194 | AH2: 417 | AI2: 498 | AJ2: =AH2/AI2 -> 0.84 | AK2: 29.2 | AL2: 78.9 | AM2: -62 | AN2: -94 | AO2: ACuTi/Aplus
A3: ANiTi | B3: 0.065 | C3: 0.26 | D3: 0.61 | E3: 0.007 | F3: 0.007 | G3: 0.03 | H3: 2.14 | I3: 0.03 | J3: 0.005 | K3: 0.0005 | L3: 0.0005 | M3: 0.0005 | N3: 0.0002 | O3: 0.0012 | P3: 0.0072 | Q3: 0.0488 | R3: 0.0579 | S3: =906.49-(2.78*13)-439.3*(B3)+34.17*(C3)-36.7*(D3)-8.5*(G3)-51.2*(H3)-27.08*(I3)-63.48*(J3)-1765.95*(K3)-520.29*(L3)-2401.12*(M3)-1784.44*(N3)+21.89*(O3)+5300.15*(P3)-420.96*(Q3)+297.07*(B3*B3)-16.4*(D3*D3)+11668.54*(K3*K3)+458.21*SQRT(M3)-1142.45*SQRT(P3)+298.91*SQRT(Q3) -> 707 | T3: 0.144 | U3: 0.362 | V3: 0.550 | W3: 0.230 | X3: 0.191 | Y3: 722 | Z3: 676 | AA3: 616 | AB3: 556 | AC3: 473 | AD3: 83 | AE3: 46 | AF3: 106 | AG3: 166 | AH3: 443 | AI3: 528 | AJ3: 0.84 | AK3: 32.4 | AL3: 76 | AM3: -65 | AN3: -95 | AO3: ANiTi
A4: AoPlus/ANiTi | B4: 0.062 | C4: 0.29 | D4: 0.62 | E4: 0.007 | F4: 0.007 | G4: 0.03 | H4: 3.01 | I4: 0.03 | J4: 0.005 | K4: 0.0005 | L4: 0.0005 | M4: 0.0006 | N4: 0.0002 | O4: 0.0005 | P4: 0.0072 | Q4: 0.05 | R4: 0.0585 | S4: 665 | T4: 0.157 | U4: 0.423 | V4: 0.545 | W4: 0.276 | X4: 0.212 | Y4: 674 | Z4: 644 | AA4: 584 | AB4: 524 | AC4: 459 | AD4: 64 | AE4: 31 | AF4: 91 | AG4: 151 | AH4: 457 | AI4: 543 | AJ4: 0.84 | AK4: 27.6 | AL4: 77 | AM4: -65 | AN4: -98 | AO4: AoPlus/ANiTi
A5: ANiTi | B5: 0.07 | C5: 0.31 | D5: 0.64 | E5: 0.007 | F5: 0.006 | G5: 0.03 | H5: 2.1 | I5: 0.03 | J5: 0.005 | K5: 0.0005 | L5: 0.0005 | M5: 0.015 | N5: 0.0002 | O5: 0.0015 | P5: 0.0068 | Q5: 0.0345 | R5: 0.058 | S5: 714 | T5: 0.152 | U5: 0.377 | V5: 0.560 | W5: 0.235 | X5: 0.201 | Y5: 720 | Z5: 673 | AA5: 613 | AB5: 553 | AC5: 470 | AD5: 83 | AE5: 47 | AF5: 107 | AG5: 167 | AH5: 474 | AI5: 562 | AJ5: 0.84 | AK5: 27.2 | AL5: 78.9 | AM5: -72 | AN5: -100 | AO5: ANiTi
A6: 290 | B6: 0.074 | C6: 0.31 | D6: 1.53 | E6: 0.011 | F6: 0.011 | G6: 0.03 | H6: 0.03 | I6: 0.03 | J6: 0.005 | K6: 0.0005 | L6: 0.0005 | M6: 0.0038 | N6: 0.0002 | O6: 0.0005 | P6: 0.0072 | Q6: 0.044 | R6: 0.0557 | S6: 756 | T6: 0.166 | U6: 0.392 | V6: 0.569 | W6: 0.280 | X6: 0.233 | Y6: 762 | Z6: 669 | AA6: 609 | AB6: 549 | AC6: 474 | AD6: 74 | AE6: 93 | AF6: 153 | AG6: 213 | AH6: 466 | AI6: 550 | AJ6: 0.85 | AK6: 28.1 | AL6: 75.2 | AM6: -68 | AN6: -90 | AO6: 290
A7: TiOX | B7: 0.085 | C7: 0.35 | D7: 1.4 | E7: 0.008 | F7: 0.007 | G7: 0.03 | H7: 0.03 | I7: 0.03 | J7: 0.005 | K7: 0.0005 | L7: 0.0005 | M7: 0.0034 | N7: 0.0002 | O7: 0.0005 | P7: 0.0094 | Q7: 0.0391 | R7: 0.0526 | S7: 759 | T7: 0.172 | U7: 0.388 | V7: 0.599 | W7: 0.260 | X7: 0.240 | Y7: 769 | Z7: 677 | AA7: 617 | AB7: 557 | AC7: 473 | AD7: 84 | AE7: 91 | AF7: 151 | AG7: 211 | AH7: 479 | AI7: 565 | AJ7: 0.85 | AK7: 26 | AL7: 76 | AM7: -62 | AN7: -93 | AO7: TiOX
A8: 20 As | B8: 0.073 | C8: 0.33 | D8: 1.52 | E8: 0.014 | F8: 0.009 | G8: 0.03 | H8: 0.03 | I8: 0.03 | J8: 0.005 | K8: 0.0005 | L8: 0.0005 | M8: 0.0039 | N8: 0.0002 | O8: 0.0005 | P8: 0.0077 | Q8: 0.0462 | R8: 0.0585 | S8: 758 | T8: 0.165 | U8: 0.392 | V8: 0.566 | W8: 0.279 | X8: 0.231 | Y8: 763 | Z8: 670 | AA8: 610 | AB8: 550 | AC8: 475 | AD8: 75 | AE8: 93 | AF8: 153 | AG8: 213 | AH8: 472 | AI8: 554 | AJ8: 0.85 | AK8: 28.4 | AL8: 77.6 | AM8: -71 | AN8: -91 | AO8: 20 As
A9: MnNi | B9: 0.038 | C9: 0.29 | D9: 0.67 | E9: 0.012 | F9: 0.01 | G9: 0.03 | H9: 3.49 | I9: 0.03 | J9: 0.005 | K9: 0.002 | L9: 0.012 | M9: 0.0055 | N9: 0.0002 | O9: 0.0005 | P9: 0.008 | Q9: 0.039 | R9: 0.0532 | S9: 646 | T9: 0.145 | U9: 0.442 | V9: 0.518 | W9: 0.311 | X9: 0.199 | Y9: 651 | Z9: 628 | AA9: 568 | AB9: 508 | AC9: 461 | AD9: 47 | AE9: 23 | AF9: 83 | AG9: 143 | AH9: 479 | AI9: 561 | AJ9: 0.85 | AK9: 30.4 | AL9: 76.6 | AM9: -61 | AN9: -106 | AO9: MnNi
A10: Aplus | B10: 0.067 | C10: 0.3 | D10: 0.65 | E10: 0.007 | F10: 0.007 | G10: 0.03 | H10: 3.03 | I10: 0.03 | J10: 0.005 | K10: 0.0005 | L10: 0.0005 | M10: 0.0036 | N10: 0.0002 | O10: 0.0005 | P10: 0.0072 | Q10: 0.046 | R10: 0.0575 | S10: 669 | T10: 0.164 | U10: 0.436 | V10: 0.554 | W10: 0.283 | X10: 0.223 | Y10: =910-310*(B10)-80*(D10)-80*(J10)-55*(H10)-20*(G10)-15*(I10) -> 669 | Z10: 639 | AA10: 579 | AB10: 519 | AC10: 456 | AD10: 63 | AE10: 30 | AF10: 90 | AG10: 150 | AH10: 477 | AI10: 557 | AJ10: 0.86 | AK10: 29.4 | AL10: 78 | AM10: -85 | AN10: -114 | AO10: Aplus
A11: ANiTi | B11: 0.057 | C11: 0.3 | D11: 0.65 | E11: 0.007 | F11: 0.007 | G11: 0.03 | H11: 3.03 | I11: 0.03 | J11: 0.005 | K11: 0.0005 | L11: 0.0005 | M11: 0.0036 | N11: 0.0002 | O11: 0.0018 | P11: 0.0072 | Q11: 0.046 | R11: 0.0588 | S11: 673 | T11: 0.154 | U11: 0.426 | V11: 0.537 | W11: 0.283 | X11: 0.209 | Y11: 672 | Z11: 641 | AA11: 581 | AB11: 521 | AC11: 460 | AD11: 61 | AE11: 31 | AF11: 91 | AG11: 151 | AH11: 477 | AI11: 557 | AJ11: 0.86 | AK11: 29.4 | AL11: 78 | AM11: -85 | AN11: -114 | AO11: ANiTi
A12: ANiTi | B12: 0.059 | C12: 0.31 | D12: 0.63 | E12: 0.007 | F12: 0.007 | G12: 0.03 | H12: 3 | I12: 0.03 | J12: 0.005 | K12: 0.0005 | L12: 0.0005 | M12: 0.0082 | N12: 0.0002 | O12: 0.0019 | P12: 0.0064 | Q12: 0.0426 | R12: 0.0593 | S12: 678 | T12: 0.155 | U12: 0.425 | V12: 0.540 | W12: 0.278 | X12: 0.209 | Y12: 675 | Z12: 644 | AA12: 584 | AB12: 524 | AC12: 461 | AD12: 63 | AE12: 31 | AF12: 91 | AG12: 151 | AH12: 489 | AI12: 571 | AJ12: 0.86 | AK12: 30.2 | AL12: 78 | AM12: -75 | AN12: -102 | AO12: ANiTi
A13: ANiTi | B13: 0.064 | C13: 0.27 | D13: 0.61 | E13: 0.007 | F13: 0.007 | G13: 0.03 | H13: 2.17 | I13: 0.03 | J13: 0.005 | K13: 0.0005 | L13: 0.0005 | M13: 0.0032 | N13: 0.0002 | O13: 0.0013 | P13: 0.0072 | Q13: 0.0454 | R13: 0.0573 | S13: 714 | T13: 0.144 | U13: 0.364 | V13: 0.548 | W13: 0.232 | X13: 0.191 | Y13: 721 | Z13: 675 | AA13: 615 | AB13: 555 | AC13: 473 | AD13: 82 | AE13: 46 | AF13: 106 | AG13: 166 | AH13: 461 | AI13: 537 | AJ13: 0.86 | AK13: 28 | AL13: 78.9 | AM13: -83 | AN13: -113 | AO13: ANiTi
A14: Aplus | B14: 0.064 | C14: 0.27 | D14: 0.61 | E14: 0.007 | F14: 0.007 | G14: 0.03 | H14: 2.17 | I14: 0.03 | J14: 0.005 | K14: 0.0005 | L14: 0.0005 | M14: 0.0032 | N14: 0.0002 | O14: 0.0005 | P14: 0.0091 | Q14: 0.0454 | R14: 0.0584 | S14: 712 | T14: 0.144 | U14: 0.364 | V14: 0.548 | W14: 0.232 | X14: 0.191 | Y14: 721 | Z14: 675 | AA14: 615 | AB14: 555 | AC14: 473 | AD14: 82 | AE14: 46 | AF14: 106 | AG14: 166 | AH14: 461 | AI14: 537 | AJ14: 0.86 | AK14: 28 | AL14: 78.9 | AM14: -83 | AN14: -113 | AO14: Aplus
A15: ANiTi | B15: 0.064 | C15: 0.27 | D15: 0.6 | E15: 0.007 | F15: 0.006 | G15: 0.03 | H15: 2.13 | I15: 0.03 | J15: 0.005 | K15: 0.0005 | L15: 0.0005 | M15: 0.008 | N15: 0.0002 | O15: 0.0014 | P15: 0.0064 | Q15: 0.0427 | R15: 0.0587 | S15: 721 | T15: 0.143 | U15: 0.360 | V15: 0.548 | W15: 0.228 | X15: 0.189 | Y15: 724 | Z15: 677 | AA15: 617 | AB15: 557 | AC15: 474 | AD15: 83 | AE15: 46 | AF15: 106 | AG15: 166 | AH15: 473 | AI15: 547 | AJ15: 0.86 | AK15: 32.4 | AL15: 77 | AM15: -77 | AN15: -96 | AO15: ANiTi
A16: Cu | B16: 0.068 | C16: 0.32 | D16: 1.49 | E16: 0.006 | F16: 0.006 | G16: 0.66 | H16: 0.03 | I16: 0.03 | J16: 0.005 | K16: 0.002 | L16: 0.012 | M16: 0.004 | N16: 0.0002 | O16: 0.0005 | P16: 0.008 | Q16: 0.041 | R16: 0.0537 | S16: 746 | T16: 0.191 | U16: 0.425 | V16: 0.556 | W16: 0.318 | X16: 0.245 | Y16: 754 | Z16: 674 | AA16: 614 | AB16: 554 | AC16: 478 | AD16: 75 | AE16: 80 | AF16: 140 | AG16: 200 | AH16: 513 | AI16: 593 | AJ16: 0.87 | AK16: 28.6 | AL16: 77 | AM16: -60 | AN16: -91 | AO16: Cu
A17: Cu | B17: 0.075 | C17: 0.36 | D17: 1.48 | E17: 0.006 | F17: 0.007 | G17: 0.11 | H17: 0.03 | I17: 0.03 | J17: 0.005 | K17: 0.002 | L17: 0.012 | M17: 0.004 | N17: 0.0002 | O17: 0.0005 | P17: 0.008 | Q17: 0.041 | R17: 0.0537 | S17: 750 | T17: 0.171 | U17: 0.400 | V17: 0.571 | W17: 0.281 | X17: 0.236 | Y17: 764 | Z17: 673 | AA17: 613 | AB17: 553 | AC17: 475 | AD17: 77 | AE17: 91 | AF17: 151 | AG17: 211 | AH17: 502 | AI17: 578 | AJ17: 0.87 | AK17: 27.6 | AL17: 77 | AM17: -66 | AN17: -91 | AO17: Cu
A18: 1000 | B18: 0.069 | C18: 0.29 | D18: 1.45 | E18: 0.012 | F18: 0.01 | G18: 0.03 | H18: 0.03 | I18: 0.03 | J18: 0.005 | K18: 0.0005 | L18: 0.0005 | M18: 0.0034 | N18: 0.0002 | O18: 0.0005 | P18: 0.0071 | Q18: 0.0461 | R18: 0.0573 | S18: 764 | T18: 0.156 | U18: 0.370 | V18: 0.558 | W18: 0.265 | X18: 0.217 | Y18: 770 | Z18: 677 | AA18: 617 | AB18: 557 | AC18: 479 | AD18: 78 | AE18: 92 | AF18: 152 | AG18: 212 | AH18: 477 | AI18: 549 | AJ18: 0.87 | AK18: 27.6 | AL18: 74.7 | AM18: -64 | AN18: -92 | AO18: 1000
A19: AlO | B19: 0.08 | C19: 0.46 | D19: 1.26 | E19: 0.011 | F19: 0.004 | G19: 0.03 | H19: 0.03 | I19: 0.03 | J19: 0.005 | K19: 0.0005 | L19: 0.0005 | M19: 0.0025 | N19: 0.0002 | O19: 0.017 | P19: 0.005 | Q19: 0.0316 | R19: 0.0563 | S19: 779 | T19: 0.163 | U19: 0.378 | V19: 0.584 | W19: 0.241 | X19: 0.221 | Y19: 781 | Z19: 691 | AA19: 631 | AB19: 571 | AC19: 480 | AD19: 91 | AE19: 90 | AF19: 150 | AG19: 210 | AH19: 481 | AI19: 551 | AJ19: 0.87 | AK19: 29.4 | AL19: 79.8 | AM19: -76 | AN19: -95 | AO19: AlO
A20: Zn | B20: 0.069 | C20: 0.27 | D20: 1.45 | E20: 0.01 | F20: 0.01 | G20: 0.04 | H20: 0.03 | I20: 0.03 | J20: 0.005 | K20: 0.0005 | L20: 0.0009 | M20: 0.0029 | N20: 0.0002 | O20: 0.0006 | P20: 0.0094 | Q20: 0.043 | R20: 0.0561 | S20: 759 | T20: 0.156 | U20: 0.368 | V20: 0.558 | W20: 0.265 | X20: 0.217 | Y20: 769 | Z20: 677 | AA20: 617 | AB20: 557 | AC20: 479 | AD20: 78 | AE20: 92 | AF20: 152 | AG20: 212 | AH20: 476 | AI20: 545 | AJ20: 0.87 | AK20: 28.4 | AL20: 77.1 | AM20: -65 | AN20: -90 | AO20: Zn
A21: AlO | B21: 0.094 | C21: 0.46 | D21: 1.25 | E21: 0.01 | F21: 0.004 | G21: 0.03 | H21: 0.03 | I21: 0.03 | J21: 0.005 | K21: 0.0005 | L21: 0.0005 | M21: 0.003 | N21: 0.0002 | O21: 0.015 | P21: 0.0053 | Q21: 0.0327 | R21: =SUM(M21:Q21) -> 0.0562 | S21: 775 | T21: 0.177 | U21: 0.390 | V21: 0.631 | W21: 0.239 | X21: 0.245 | Y21: 778 | Z21: 688 | AA21: 628 | AB21: 568 | AC21: 474 | AD21: 94 | AE21: 89 | AF21: 149 | AG21: 209 | AH21: 478 | AI21: 546 | AJ21: 0.88 | AK21: 26.8 | AL21: 80.7 | AM21: -83 | AN21: -96 | AO21: AlO
A22: MnNb/MnTi/MnV | B22: 0.076 | C22: 0.29 | D22: 1.74 | E22: 0.006 | F22: 0.008 | G22: 0.03 | H22: 0.03 | I22: 0.03 | J22: 0.005 | K22: 0.0005 | L22: 0.0004 | M22: 0.0035 | N22: 0.0002 | O22: 0.0005 | P22: 0.0092 | Q22: 0.0415 | R22: 0.0549 | S22: 732 | T22: 0.178 | U22: 0.425 | V22: 0.573 | W22: 0.314 | X22: 0.256 | Y22: 744 | Z22: 649 | AA22: 589 | AB22: 529 | AC22: 466 | AD22: 63 | AE22: 95 | AF22: 155 | AG22: 215 | AH22: 500 | AI22: 571 | AJ22: 0.88 | AK22: 28.8 | AL22: 77 | AM22: -62 | AN22: -90 | AO22: MnNb/MnTi/MnV
A23: AlO | B23: 0.074 | C23: 0.35 | D23: 1.48 | E23: 0.007 | F23: 0.006 | G23: 0.03 | H23: 0.03 | I23: 0.03 | J23: 0.005 | K23: 0.0005 | L23: 0.0005 | M23: 0.0034 | N23: 0.0002 | O23: 0.0005 | P23: 0.0075 | Q23: 0.04 | R23: 0.0516 | S23: 759 | T23: 0.165 | U23: 0.390 | V23: 0.569 | W23: 0.273 | X23: 0.229 | Y23: 766 | Z23: 673 | AA23: 613 | AB23: 553 | AC23: 476 | AD23: 77 | AE23: 92 | AF23: 152 | AG23: 212 | AH23: 461 | AI23: 526 | AJ23: 0.88 | AK23: 30 | AL23: 78.9 | AM23: -69 | AN23: -93 | AO23: AlO
A24: AlO | B24: 0.083 | C24: 0.47 | D24: 1.35 | E24: 0.011 | F24: 0.004 | G24: 0.03 | H24: 0.03 | I24: 0.03 | J24: 0.005 | K24: 0.0005 | L24: 0.0005 | M24: 0.003 | N24: 0.0002 | O24: 0.012 | P24: 0.0049 | Q24: 0.03 | R24: 0.0501 | S24: 771 | T24: 0.171 | U24: 0.397 | V24: 0.593 | W24: 0.256 | X24: 0.235 | Y24: 773 | Z24: 682 | AA24: 622 | AB24: 562 | AC24: 476 | AD24: 86 | AE24: 91 | AF24: 151 | AG24: 211 | AH24: 492 | AI24: 558 | AJ24: 0.88 | AK24: 26.4 | AL24: 81.6 | AM24: -80 | AN24: -94 | AO24: AlO
A25: AlN/AlO/Al/AlTi | B25: 0.069 | C25: 0.3 | D25: 1.36 | E25: 0.009 | F25: 0.007 | G25: 0.03 | H25: 0.03 | I25: 0.03 | J25: 0.005 | K25: 0.0005 | L25: 0.0005 | M25: 0.0037 | N25: 0.0002 | O25: 0.0005 | P25: 0.0068 | Q25: 0.0432 | R25: 0.0544 | S25: 772 | T25: 0.152 | U25: 0.357 | V25: 0.558 | W25: 0.251 | X25: 0.209 | Y25: 777 | Z25: 685 | AA25: 625 | AB25: 565 | AC25: 482 | AD25: 83 | AE25: 91 | AF25: 151 | AG25: 211 | AH25: 468 | AI25: 529 | AJ25: 0.88 | AK25: 32.6 | AL25: 80.7 | AM25: -72 | AN25: -99 | AO25: AlN/AlO/Al/AlTi
A26: AlN/AlO/Al/AlTi | B26: 0.073 | C26: 0.33 | D26: 1.39 | E26: 0.008 | F26: 0.007 | G26: 0.03 | H26: 0.03 | I26: 0.03 | J26: 0.005 | K26: 0.0005 | L26: 0.0005 | M26: 0.0039 | N26: 0.0002 | O26: 0.002 | P26: 0.0066 | Q26: 0.0427 | R26: 0.0554 | S26: 769 | T26: 0.158 | U26: 0.371 | V26: 0.566 | W26: 0.257 | X26: 0.219 | Y26: 773 | Z26: 682 | AA26: 622 | AB26: 562 | AC26: 479 | AD26: 82 | AE26: 92 | AF26: 152 | AG26: 212 | AH26: 475 | AI26: 536 | AJ26: 0.89 | AK26: 33.4 | AL26: 80.7 | AM26: -70 | AN26: -95 | AO26: AlN/AlO/Al/AlTi
A27: TiO2 | B27: 0.073 | C27: 0.44 | D27: 1.38 | E27: 0.006 | F27: 0.004 | G27: 0.03 | H27: 0.03 | I27: 0.03 | J27: 0.005 | K27: 0.002 | L27: 0.012 | M27: 0.0042 | N27: 0.0002 | O27: 0.0005 | P27: 0.0073 | Q27: 0.042 | R27: 0.0542 | S27: 764 | T27: 0.163 | U27: 0.390 | V27: 0.566 | W27: 0.263 | X27: 0.222 | Y27: 774 | Z27: 682 | AA27: 622 | AB27: 562 | AC27: 480 | AD27: 83 | AE27: 91 | AF27: 151 | AG27: 211 | AH27: 503 | AI27: 561 | AJ27: 0.90 | AK27: 29 | AL27: 78.8 | AM27: -65 | AN27: -92 | AO27: TiO2
A28: AlO | B28: 0.082 | C28: 0.47 | D28: 1.35 | E28: 0.006 | F28: 0.005 | G28: 0.03 | H28: 0.03 | I28: 0.03 | J28: 0.005 | K28: 0.0005 | L28: 0.0005 | M28: 0.0044 | N28: 0.0002 | O28: 0.015 | P28: 0.0046 | Q28: 0.0345 | R28: 0.0587 | S28: 777 | T28: 0.170 | U28: 0.396 | V28: 0.590 | W28: 0.256 | X28: 0.233 | Y28: 773 | Z28: 683 | AA28: 623 | AB28: 563 | AC28: 476 | AD28: 86 | AE28: 91 | AF28: 151 | AG28: 211 | AH28: 492 | AI28: 546 | AJ28: 0.90 | AK28: 29.2 | AL28: 80.7 | AM28: -78 | AN28: -96 | AO28: AlO
A29: MnSi | B29: 0.066 | C29: 0.37 | D29: 1.82 | E29: 0.008 | F29: 0.007 | G29: 0.03 | H29: 0.03 | I29: 0.03 | J29: 0.005 | K29: 0.0005 | L29: 0.0005 | M29: 0.0083 | N29: 0.0002 | O29: 0.0005 | P29: 0.007 | Q29: 0.0406 | R29: 0.0566 | S29: 736 | T29: 0.174 | U29: 0.442 | V29: 0.552 | W29: 0.330 | X29: 0.248 | Y29: 741 | Z29: 645 | AA29: 585 | AB29: 525 | AC29: 469 | AD29: 56 | AE29: 96 | AF29: 156 | AG29: 216 | AH29: 533 | AI29: 591 | AJ29: 0.90 | AK29: 28.6 | AL29: 78.8 | AM29: -62 | AN29: -93 | AO29: MnSi
A30: Cplus | B30: 0.076 | C30: 0.25 | D30: 1.48 | E30: 0.006 | F30: 0.008 | G30: 0.03 | H30: 0.95 | I30: 0.03 | J30: 0.005 | K30: 0.0005 | L30: 0.0005 | M30: 0.0033 | N30: 0.0002 | O30: 0.0005 | P30: 0.0081 | Q30: 0.0417 | R30: 0.0538 | S30: 707 | T30: 0.179 | U30: 0.437 | V30: 0.573 | W30: 0.315 | X30: 0.256 | Y30: 714 | Z30: 639 | AA30: 579 | AB30: 519 | AC30: 459 | AD30: 59 | AE30: 76 | AF30: 136 | AG30: 196 | AH30: 498 | AI30: 551 | AJ30: 0.90 | AK30: 27.2 | AL30: 78.9 | AM30: -62 | AN30: -94 | AO30: Cplus
A31: TiO2 | B31: 0.076 | C31: 0.41 | D31: 1.4 | E31: 0.006 | F31: 0.005 | G31: 0.03 | H31: 0.03 | I31: 0.03 | J31: 0.005 | K31: 0.002 | L31: 0.012 | M31: 0.0027 | N31: 0.0002 | O31: 0.0005 | P31: 0.0082 | Q31: 0.0395 | R31: 0.0511 | S31: 756 | T31: 0.166 | U31: 0.391 | V31: 0.573 | W31: 0.265 | X31: 0.228 | Y31: 771 | Z31: 680 | AA31: 620 | AB31: 560 | AC31: 478 | AD31: 82 | AE31: 91 | AF31: 151 | AG31: 211 | AH31: 500 | AI31: 553 | AJ31: 0.90 | AK31: 28.2 | AL31: 77.7 | AM31: -72 | AN31: -93 | AO31: TiO2
A32: MnV | B32: 0.078 | C32: 0.26 | D32: 1.71 | E32: 0.007 | F32: 0.005 | G32: 0.03 | H32: 0.03 | I32: 0.03 | J32: 0.005 | K32: 0.0005 | L32: 0.06 | M32: 0.0025 | N32: 0.0002 | O32: 0.0005 | P32: 0.0086 | Q32: 0.0405 | R32: 0.0523 | S32: 700 | T32: 0.183 | U32: 0.429 | V32: 0.579 | W32: 0.319 | X32: 0.263 | Y32: 746 | Z32: 651 | AA32: 591 | AB32: 531 | AC32: 466 | AD32: 65 | AE32: 95 | AF32: 155 | AG32: 215 | AH32: 589 | AI32: 650 | AJ32: 0.91 | AK32: 21.6 | AL32: 75 | AM32: -64 | AN32: -90 | AO32: MnV
A33: MnV | B33: 0.078 | C33: 0.27 | D33: 1.35 | E33: 0.006 | F33: 0.007 | G33: 0.03 | H33: 0.03 | I33: 0.03 | J33: 0.005 | K33: 0.0005 | L33: 0.043 | M33: 0.0029 | N33: 0.0002 | O33: 0.0005 | P33: 0.0079 | Q33: 0.041 | R33: 0.0525 | S33: 742 | T33: 0.164 | U33: 0.368 | V33: 0.579 | W33: 0.256 | X33: 0.226 | Y33: 775 | Z33: 684 | AA33: 624 | AB33: 564 | AC33: 478 | AD33: 85 | AE33: 91 | AF33: 151 | AG33: 211 | AH33: 536 | AI33: 590 | AJ33: 0.91 | AK33: 24.4 | AL33: 78.1 | AM33: -70 | AN33: -94 | AO33: MnV
A34: Zn | B34: 0.076 | C34: 0.31 | D34: 1.48 | E34: 0.01 | F34: 0.01 | G34: 0.04 | H34: 0.03 | I34: 0.03 | J34: 0.005 | K34: 0.0005 | L34: 0.0006 | M34: 0.0027 | N34: 0.0002 | O34: 0.0005 | P34: 0.0075 | Q34: 0.0425 | R34: 0.0534 | S34: 756 | T34: 0.166 | U34: 0.386 | V34: 0.573 | W34: 0.272 | X34: 0.232 | Y34: 765 | Z34: 673 | AA34: 613 | AB34: 553 | AC34: 475 | AD34: 78 | AE34: 92 | AF34: 152 | AG34: 212 | AH34: 497 | AI34: 541 | AJ34: 0.92 | AK34: 26.9 | AL34: 76.2 | AM34: -65 | AN34: -94 | AO34: Zn
B35: Carbon | C35: Silicon | D35: Manganese | E35: Phosphorus | F35: Sulfur | G35: Copper | H35: Nickel | I35: Chromium | J35: Molybdenum | K35: Niobium | L35: Vanadium | M35: Titanium | N35: Boron | O35: Aluminum | P35: Nitrogen | Q35: Oxygen | R35: (Ti+B+Al+N+O) | S35: New Ar3 (ºC) | T35: Pcm | U35: CE | V35: A(C) | W35: EMU | X35: CEN | Y35: Ar3m (ºC) | Z35: Bs (ºC) | AA35: B50 (ºC) | AB35: Bf (ºC) | AC35: Ms (ºC) | AD35: Bf-Ms (ºC) | AE35: Ar3m -Bs (ºC) | AF35: Ar3m -B50 (ºC) | AG35: Ar3m -Bf (ºC) | AH35: MPa | AI35: MPa | AJ35: YS/UTS | AK35: % | AL35: % | AM35: CVN 100J | AN35: CVN 28J
A36: Minimum | B36: =MIN(B2:B34) -> 0.038 | C36: 0.25 | D36: 0.60 | E36: 0.006 | F36: 0.004 | G36: 0.03 | H36: 0.03 | I36: 0.03 | J36: 0.005 | K36: 0.0005 | L36: 0.0004 | M36: 0.0005 | N36: 0.0002 | O36: 0.0005 | P36: 0.0046 | Q36: 0.0300 | R36: 0.0501 | S36: 646 | T36: 0.135 | U36: 0.264 | V36: 0.518 | W36: 0.164 | X36: 0.153 | Y36: 651 | Z36: 628 | AA36: 568 | AB36: 508 | AC36: 456 | AD36: 47 | AE36: 23 | AF36: 83 | AG36: 143 | AH36: 417 | AI36: 498 | AJ36: 0.84 | AK36: 21.6 | AL36: 74.7 | AM36: -85 | AN36: -114 | AO36: Minimum
A37: Maximum | B37: =MAX(B2:B34) -> 0.094 | C37: 0.47 | D37: 1.82 | E37: 0.014 | F37: 0.011 | G37: 0.66 | H37: 3.49 | I37: 0.03 | J37: 0.005 | K37: 0.002 | L37: 0.06 | M37: 0.015 | N37: 0.0002 | O37: 0.017 | P37: 0.0094 | Q37: 0.0500 | R37: 0.0593 | S37: 820 | T37: 0.191 | U37: 0.442 | V37: 0.631 | W37: 0.330 | X37: 0.263 | Y37: 826 | Z37: 752 | AA37: 692 | AB37: 632 | AC37: 509 | AD37: 123 | AE37: 96 | AF37: 156 | AG37: 216 | AH37: 589 | AI37: 650 | AJ37: 0.92 | AK37: 33.4 | AL37: 81.6 | AM37: -60 | AN37: -90 | AO37: Maximum
A38: Average | B38: =AVERAGE(B2:B34) -> 0.071 | C38: 0.328 | D38: 1.183 | E38: 0.008 | F38: 0.007 | G38: 0.067 | H38: 0.845 | I38: 0.03 | J38: 0.005 | K38: 0.0007 | L38: 0.0053 | M38: =AVERAGE(M2:M34) -> 0.0041 | N38: 0.0002 | O38: 0.0025 | P38: 0.0073 | Q38: 0.0415 | R38: =AVERAGE(R2:R34) -> 0.0556 | S38: =906.49-(2.78*13)-439.3*(B38)+34.17*(C38)-36.7*(D38)-8.5*(G38)-51.2*(H38)-27.08*(I38)-63.48*(J38)-1765.95*(K38)-520.29*(L38)-2401.12*(M38)-1784.44*(N38)+21.89*(O38)+5300.15*(P38)-420.96*(Q38)+297.07*(B38*B38)-16.4*(D38*D38)+11668.54*(K38*K38)+458.21*SQRT(M38)-1142.45*SQRT(P38)+298.91*SQRT(Q38) -> 740 | T38: =(B38)+(C38/30)+((D38+G38+I38)/20)+(H38/60)+(J38/15)+(L38/10)+(5*N38) -> 0.162 | U38: =B38+(D38+C38)/6+(I38+J38+L38)/5+(H38+G38)/15 -> 0.392 | V38: =0.75+(0.25*TANH(20*(B38-0.12))) -> 0.562 | W38: =C38/24+D38/6+G38/15+H38/20+(I38+J38+L38+K38)/5+5*N38 -> 0.267 | X38: =B38+V38*W38 -> 0.221 | Y38: =910-310*(B38)-80*(D38)-80*(J38)-55*(H38)-20*(G38)-15*(I38) -> 745 | Z38: =830-270*B38-90*D38-37*H38-70*I38-83*J38 -> 671 | AA38: =770-270*B38-90*D38-37*H38-70*I38-83*J38 -> 611 | AB38: =710-270*B38-90*D38-37*H38-70*I38-83*J38 -> 551 | AC38: =561-474*B38-33*D38-17*H38-17*I38-21*J38 -> 473 | AD38: =AB38-AC38 -> 77 | AE38: =Y38-Z38 -> 74 | AF38: =Y38-AA38 -> 134 | AG38: =Y38-AB38 -> 194
A39: Balanced | B39: 0.080 | C39: 0.50 | D39: 1.80 | E39: 0.008 | F39: 0.007 | G39: 0.03 | H39: 0.60 | I39: 0.03 | J39: 0.010 | K39: 0.0005 | L39: 0.0005 | M39: 0.0030 | N39: 0.0010 | O39: 0.0010 | P39: 0.0060 | Q39: 0.0250 | R39: =AVERAGE(R3:R35) -> 0.0555 | S39: =906.49-(2.78*13)-439.3*(B39)+34.17*(C39)-36.7*(D39)-8.5*(G39)-51.2*(H39)-27.08*(I39)-63.48*(J39)-1765.95*(K39)-520.29*(L39)-2401.12*(M39)-1784.44*(N39)+21.89*(O39)+5300.15*(P39)-420.96*(Q39)+297.07*(B39*B39)-16.4*(D39*D39)+11668.54*(K39*K39)+458.21*SQRT(M39)-1142.45*SQRT(P39)+298.91*SQRT(Q39) -> 698 | T39: =(B39)+(C39/30)+((D39+G39+I39)/20)+(H39/60)+(J39/15)+(L39/10)+(5*N39) -> 0.205 | U39: =B39+(D39+C39)/6+(I39+J39+L39)/5+(H39+G39)/15 -> 0.513 | V39: =0.75+(0.25*TANH(20*(B39-0.12))) -> 0.584 | W39: =C39/24+D39/6+G39/15+H39/20+(I39+J39+L39+K39)/5+5*N39 -> 0.366 | X39: =B39+V39*W39 -> 0.294 | Y39: =910-310*(B39)-80*(D39)-80*(J39)-55*(H39)-20*(G39)-15*(I39) -> 706 | Z39: =830-270*B39-90*D39-37*H39-70*I39-83*J39 -> 621 | AA39: =770-270*B39-90*D39-37*H39-70*I39-83*J39 -> 561 | AB39: =710-270*B39-90*D39-37*H39-70*I39-83*J39 -> 501 | AC39: =561-474*B39-33*D39-17*H39-17*I39-21*J39 -> 453 | AD39: =AB39-AC39 -> 49 | AE39: =Y39-Z39 -> 85 | AF39: =Y39-AA39 -> 145 | AG39: =Y39-AB39 -> 205
R42: Ar3 (°C) = 910 – (310 x C) – (80 x Mn) – (80 x Mo) – (55 x Ni) – (20 x Cu) – (15 x Cr)
R43: BS (°C) = 830 – (270 × C) – (90 × Mn) – (37 × Ni) – (70 × Cr) – (83 × Mo)
R44: B50 (°C) = 770 – (270 × C) – (90 × Mn) – (37 × Ni) – (70 × Cr) – (83 × Mo)
R45: BF (°C) = 710 – (270 × C) – (90 × Mn) – (37 × Ni) – (70 × Cr) – (83 × Mo)
R46: MS (°C) = 561 – (474 × C) – (33 × Mn)– (17 × Ni) – (17 × Cr) – (21 × Mo)
R48: 𝑃 cm = C+Si/30+(Mn+Cu+Cr)/20+Ni/60+Mo/15+V/10+(5×B)
R49: CEIIW = C+(Mn+Si)/6+(Cr+Mo+V)/5+(Ni+Cu)/15
R50: CEN = C + {A(C) × EMU}
R51: 𝐴 (C) = 0.75 + 0.25tanh [20 × (C − 0.12)]
R52: EMU = {Si/24 + Mn/6 + Cu/15 + Ni/20 + (Cr + Mo + V + Nb)/5 + (5 x B)}

Sheet 61 Selected WMs
A1: Heat ID | B1: Weld Metal Chemical Composition (wt.%) | S1: Calculated Metallurgical Characteristics | AH1: YS | AI1: UTS | AJ1: YS/UTS | AK1: El | AL1: RA | AM1: Temp (ºC) | AN1: Temp (ºC) | AO1: Heat ID
B2: Carbon | C2: Silicon | D2: Manganese | E2: Phosphorus | F2: Sulfur | G2: Copper | H2: Nickel | I2: Chromium | J2: Molybdenum | K2: Niobium | L2: Vanadium | M2: Titanium | N2: Boron | O2: Aluminum | P2: Nitrogen | Q2: Oxygen | R2: (Ti+B+Al+N+O) | S2: New Ar3 (ºC) | T2: Pcm | U2: CE | V2: A(C) | W2: EMU | X2: CEN | Y2: Ar3m (ºC) | Z2: Bs (ºC) | AA2: B50 (ºC) | AB2: Bf (ºC) | AC2: Ms (ºC) | AD2: Bf-Ms (ºC) | AE2: Ar3m -Bs (ºC) | AF2: Ar3m -B50 (ºC) | AG2: Ar3m -Bf (ºC) | AH2: MPa | AI2: MPa | AK2: % | AL2: % | AM2: CVN 100J | AN2: CVN 28J
A3: TiOX | B3: 0.082 | C3: 0.37 | D3: 1.49 | E3: 0.009 | F3: 0.003 | G3: 0.03 | H3: 0.03 | I3: 0.03 | J3: 0.005 | K3: 0.0005 | L3: 0.0005 | M3: 0.003 | N3: 0.0002 | O3: 0.0005 | P3: 0.0059 | Q3: 0.0257 | R3: =SUM(M3:Q3) -> 0.0353 | S3: =906.49-(2.78*13)-439.3*(B3)+34.17*(C3)-36.7*(D3)-8.5*(G3)-51.2*(H3)-27.08*(I3)-63.48*(J3)-1765.95*(K3)-520.29*(L3)-2401.12*(M3)-1784.44*(N3)+21.89*(O3)+5300.15*(P3)-420.96*(Q3)+297.07*(B3*B3)-16.4*(D3*D3)+11668.54*(K3*K3)+458.21*SQRT(M3)-1142.45*SQRT(P3)+298.91*SQRT(Q3) -> 752 | T3: =(B3)+(C3/30)+((D3+G3+I3)/20)+(H3/60)+(J3/15)+(L3/10)+(5*N3) -> 0.174 | U3: =B3+(D3+C3)/6+(I3+J3+L3)/5+(H3+G3)/15 -> 0.403 | V3: =0.75+(0.25*TANH(20*(B3-0.12))) -> 0.590 | W3: =C3/24+D3/6+G3/15+H3/20+(I3+J3+L3+K3)/5+5*N3 -> 0.275 | X3: =B3+V3*W3 -> 0.244 | Y3: =910-310*(B3)-80*(D3)-80*(J3)-55*(H3)-20*(G3)-15*(I3) -> 762 | Z3: =830-270*B3-90*D3-37*H3-70*I3-83*J3 -> 670 | AA3: =770-270*B3-90*D3-37*H3-70*I3-83*J3 -> 610 | AB3: =710-270*B3-90*D3-37*H3-70*I3-83*J3 -> 550 | AC3: =561-474*B3-33*D3-17*H3-17*I3-21*J3 -> 472 | AD3: =AB3-AC3 -> 78 | AE3: =Y3-Z3 -> 92 | AF3: =Y3-AA3 -> 152 | AG3: =Y3-AB3 -> 212 | AH3: 453 | AI3: 552 | AJ3: =AH3/AI3 -> 0.82 | AK3: 29.3 | AL3: 80.7 | AM3: -81 | AN3: -96 | AO3: TiOX
A4: TiOX | B4: 0.078 | C4: 0.38 | D4: 1.49 | E4: 0.009 | F4: 0.003 | G4: 0.03 | H4: 0.03 | I4: 0.03 | J4: 0.005 | K4: 0.0005 | L4: 0.0005 | M4: 0.0019 | N4: 0.0002 | O4: 0.0005 | P4: 0.0059 | Q4: 0.0242 | R4: 0.0327 | S4: 751 | T4: 0.170 | U4: 0.401 | V4: 0.579 | W4: 0.276 | X4: 0.238 | Y4: 764 | Z4: 671 | AA4: 611 | AB4: 551 | AC4: 474 | AD4: 77 | AE4: 92 | AF4: 152 | AG4: 212 | AH4: 455 | AI4: 554 | AJ4: 0.82 | AK4: 27.4 | AL4: 78.8 | AM4: -82 | AN4: -98 | AO4: TiOX
A5: MnOx | B5: 0.08 | C5: 0.32 | D5: 1.02 | E5: 0.009 | F5: 0.005 | G5: 0.03 | H5: 0.03 | I5: 0.03 | J5: 0.005 | K5: 0.0005 | L5: 0.0005 | M5: 0.0005 | N5: 0.0002 | O5: 0.0005 | P5: 0.0051 | Q5: 0.0357 | R5: 0.042 | S5: 785 | T5: 0.147 | U5: 0.314 | V5: 0.584 | W5: 0.195 | X5: 0.194 | Y5: 801 | Z5: 713 | AA5: 653 | AB5: 593 | AC5: 488 | AD5: 105 | AE5: 88 | AF5: 148 | AG5: 208 | AH5: 418 | AI5: 502 | AJ5: 0.83 | AK5: 30 | AL5: 78.9 | AM5: -70 | AN5: -95 | AO5: MnOx
A6: ACuTi/Aplus | B6: 0.063 | C6: 0.3 | D6: 0.64 | E6: 0.008 | F6: 0.008 | G6: 0.53 | H6: 0.03 | I6: 0.03 | J6: 0.005 | K6: 0.0005 | L6: 0.0005 | M6: 0.0043 | N6: 0.0002 | O6: 0.0005 | P6: 0.0074 | Q6: 0.0453 | R6: 0.0577 | S6: 820 | T6: 0.135 | U6: 0.264 | V6: 0.546 | W6: 0.164 | X6: 0.153 | Y6: 826 | Z6: 752 | AA6: 692 | AB6: 632 | AC6: 509 | AD6: 123 | AE6: 74 | AF6: 134 | AG6: 194 | AH6: 417 | AI6: 498 | AJ6: 0.84 | AK6: 29.2 | AL6: 78.9 | AM6: -62 | AN6: -94 | AO6: ACuTi/Aplus
A7: ANiTi | B7: 0.065 | C7: 0.26 | D7: 0.61 | E7: 0.007 | F7: 0.007 | G7: 0.03 | H7: 2.14 | I7: 0.03 | J7: 0.005 | K7: 0.0005 | L7: 0.0005 | M7: 0.0005 | N7: 0.0002 | O7: 0.0012 | P7: 0.0072 | Q7: 0.0488 | R7: 0.0579 | S7: 707 | T7: 0.144 | U7: 0.362 | V7: 0.550 | W7: 0.230 | X7: 0.191 | Y7: 722 | Z7: 676 | AA7: 616 | AB7: 556 | AC7: 473 | AD7: 83 | AE7: 46 | AF7: 106 | AG7: 166 | AH7: 443 | AI7: 528 | AJ7: 0.84 | AK7: 32.4 | AL7: 76 | AM7: -65 | AN7: -95 | AO7: ANiTi
A8: AoPlus/ANiTi | B8: 0.062 | C8: 0.29 | D8: 0.62 | E8: 0.007 | F8: 0.007 | G8: 0.03 | H8: 3.01 | I8: 0.03 | J8: 0.005 | K8: 0.0005 | L8: 0.0005 | M8: 0.0006 | N8: 0.0002 | O8: 0.0005 | P8: 0.0072 | Q8: 0.05 | R8: 0.0585 | S8: 665 | T8: 0.157 | U8: 0.423 | V8: 0.545 | W8: 0.276 | X8: 0.212 | Y8: 674 | Z8: 644 | AA8: 584 | AB8: 524 | AC8: 459 | AD8: 64 | AE8: 31 | AF8: 91 | AG8: 151 | AH8: 457 | AI8: 543 | AJ8: 0.84 | AK8: 27.6 | AL8: 77 | AM8: -65 | AN8: -98 | AO8: AoPlus/ANiTi
A9: TiOX | B9: 0.084 | C9: 0.36 | D9: 1.42 | E9: 0.009 | F9: 0.003 | G9: 0.03 | H9: 0.03 | I9: 0.03 | J9: 0.005 | K9: 0.0005 | L9: 0.0005 | M9: 0.0035 | N9: 0.0002 | O9: 0.0005 | P9: 0.0046 | Q9: 0.0240 | R9: 0.0328 | S9: 760 | T9: 0.172 | U9: 0.392 | V9: 0.596 | W9: 0.263 | X9: 0.241 | Y9: 767 | Z9: 676 | AA9: 616 | AB9: 556 | AC9: 473 | AD9: 83 | AE9: 91 | AF9: 151 | AG9: 211 | AH9: 470 | AI9: 558 | AJ9: 0.84 | AK9: 28.2 | AL9: 82 | AM9: -79 | AN9: -94 | AO9: TiOX
A10: ANiTi | B10: 0.07 | C10: 0.31 | D10: 0.64 | E10: 0.007 | F10: 0.006 | G10: 0.03 | H10: 2.1 | I10: 0.03 | J10: 0.005 | K10: 0.0005 | L10: 0.0005 | M10: 0.015 | N10: 0.0002 | O10: 0.0015 | P10: 0.0068 | Q10: 0.0345 | R10: 0.058 | S10: 714 | T10: 0.152 | U10: 0.377 | V10: 0.560 | W10: 0.235 | X10: 0.201 | Y10: 720 | Z10: 673 | AA10: 613 | AB10: 553 | AC10: 470 | AD10: 83 | AE10: 47 | AF10: 107 | AG10: 167 | AH10: 474 | AI10: 562 | AJ10: 0.84 | AK10: 27.2 | AL10: 78.9 | AM10: -72 | AN10: -100 | AO10: ANiTi
A11: TiOX | B11: 0.08 | C11: 0.34 | D11: 1.64 | E11: 0.01 | F11: 0.004 | G11: 0.03 | H11: 0.03 | I11: 0.03 | J11: 0.005 | K11: 0.0005 | L11: 0.0005 | M11: 0.0032 | N11: 0.0002 | O11: 0.0005 | P11: 0.0066 | Q11: 0.0276 | R11: 0.0381 | S11: 738 | T11: 0.178 | U11: 0.421 | V11: 0.584 | W11: 0.299 | X11: 0.255 | Y11: 751 | Z11: 657 | AA11: 597 | AB11: 537 | AC11: 468 | AD11: 69 | AE11: 94 | AF11: 154 | AG11: 214 | AH11: 474 | AI11: 562 | AJ11: 0.84 | AK11: 27.4 | AL11: 81.2 | AM11: -74 | AN11: -92 | AO11: TiOX
A12: 290 | B12: 0.074 | C12: 0.31 | D12: 1.53 | E12: 0.011 | F12: 0.011 | G12: 0.03 | H12: 0.03 | I12: 0.03 | J12: 0.005 | K12: 0.0005 | L12: 0.0005 | M12: 0.0038 | N12: 0.0002 | O12: 0.0005 | P12: 0.0072 | Q12: 0.044 | R12: 0.0557 | S12: 756 | T12: 0.166 | U12: 0.392 | V12: 0.569 | W12: 0.280 | X12: 0.233 | Y12: 762 | Z12: 669 | AA12: 609 | AB12: 549 | AC12: 474 | AD12: 74 | AE12: 93 | AF12: 153 | AG12: 213 | AH12: 466 | AI12: 550 | AJ12: 0.85 | AK12: 28.1 | AL12: 75.2 | AM12: -68 | AN12: -90 | AO12: 290
A13: TiOX | B13: 0.085 | C13: 0.35 | D13: 1.4 | E13: 0.008 | F13: 0.007 | G13: 0.03 | H13: 0.03 | I13: 0.03 | J13: 0.005 | K13: 0.0005 | L13: 0.0005 | M13: 0.0034 | N13: 0.0002 | O13: 0.0005 | P13: 0.0094 | Q13: 0.0391 | R13: 0.0526 | S13: 759 | T13: 0.172 | U13: 0.388 | V13: 0.599 | W13: 0.260 | X13: 0.240 | Y13: 769 | Z13: 677 | AA13: 617 | AB13: 557 | AC13: 473 | AD13: 84 | AE13: 91 | AF13: 151 | AG13: 211 | AH13: 479 | AI13: 565 | AJ13: 0.85 | AK13: 26 | AL13: 76 | AM13: -62 | AN13: -93 | AO13: TiOX
A14: TiOX | B14: 0.082 | C14: 0.35 | D14: 1.69 | E14: 0.01 | F14: 0.004 | G14: 0.03 | H14: 0.03 | I14: 0.03 | J14: 0.005 | K14: 0.0005 | L14: 0.0005 | M14: 0.0015 | N14: 0.0002 | O14: 0.0005 | P14: 0.0058 | Q14: 0.0283 | R14: 0.0363 | S14: 731 | T14: 0.183 | U14: 0.433 | V14: 0.590 | W14: 0.308 | X14: 0.264 | Y14: 746 | Z14: 652 | AA14: 592 | AB14: 532 | AC14: 465 | AD14: 67 | AE14: 94 | AF14: 154 | AG14: 214 | AH14: 485 | AI14: 571 | AJ14: 0.85 | AK14: 28 | AL14: 79.8 | AM14: -69 | AN14: -95 | AO14: TiOX
A15: ANiTi | B15: 0.065 | C15: 0.35 | D15: 0.65 | E15: 0.006 | F15: 0.007 | G15: 0.03 | H15: 3 | I15: 0.03 | J15: 0.005 | K15: 0.0005 | L15: 0.0005 | M15: 0.015 | N15: 0.0002 | O15: 0.002 | P15: 0.0068 | Q15: 0.0384 | R15: 0.0624 | S15: 672 | T15: 0.164 | U15: 0.441 | V15: 0.550 | W15: 0.283 | X15: 0.221 | Y15: 671 | Z15: 640 | AA15: 580 | AB15: 520 | AC15: 457 | AD15: 63 | AE15: 31 | AF15: 91 | AG15: 151 | AH15: 490 | AI15: 576 | AJ15: 0.85 | AK15: 30.2 | AL15: 77.5 | AM15: -74 | AN15: -112 | AO15: ANiTi
A16: 20 As | B16: 0.073 | C16: 0.33 | D16: 1.52 | E16: 0.014 | F16: 0.009 | G16: 0.03 | H16: 0.03 | I16: 0.03 | J16: 0.005 | K16: 0.0005 | L16: 0.0005 | M16: 0.0039 | N16: 0.0002 | O16: 0.0005 | P16: 0.0077 | Q16: 0.0462 | R16: 0.0585 | S16: 758 | T16: 0.165 | U16: 0.392 | V16: 0.566 | W16: 0.279 | X16: 0.231 | Y16: 763 | Z16: 670 | AA16: 610 | AB16: 550 | AC16: 475 | AD16: 75 | AE16: 93 | AF16: 153 | AG16: 213 | AH16: 472 | AI16: 554 | AJ16: 0.85 | AK16: 28.4 | AL16: 77.6 | AM16: -71 | AN16: -91 | AO16: 20 As
A17: MnNi | B17: 0.038 | C17: 0.29 | D17: 0.67 | E17: 0.012 | F17: 0.01 | G17: 0.03 | H17: 3.49 | I17: 0.03 | J17: 0.005 | K17: 0.002 | L17: 0.012 | M17: 0.0055 | N17: 0.0002 | O17: 0.0005 | P17: 0.008 | Q17: 0.039 | R17: 0.0532 | S17: 646 | T17: 0.145 | U17: 0.442 | V17: 0.518 | W17: 0.311 | X17: 0.199 | Y17: 651 | Z17: 628 | AA17: 568 | AB17: 508 | AC17: 461 | AD17: 47 | AE17: 23 | AF17: 83 | AG17: 143 | AH17: 479 | AI17: 561 | AJ17: 0.85 | AK17: 30.4 | AL17: 76.6 | AM17: -61 | AN17: -106 | AO17: MnNi
A18: Aplus | B18: 0.067 | C18: 0.3 | D18: 0.65 | E18: 0.007 | F18: 0.007 | G18: 0.03 | H18: 3.03 | I18: 0.03 | J18: 0.005 | K18: 0.0005 | L18: 0.0005 | M18: 0.0036 | N18: 0.0002 | O18: 0.0005 | P18: 0.0072 | Q18: 0.046 | R18: 0.0575 | S18: 669 | T18: 0.164 | U18: 0.436 | V18: 0.554 | W18: 0.283 | X18: 0.223 | Y18: 669 | Z18: 639 | AA18: 579 | AB18: 519 | AC18: 456 | AD18: 63 | AE18: 30 | AF18: 90 | AG18: 150 | AH18: 477 | AI18: 557 | AJ18: 0.86 | AK18: 29.4 | AL18: 78 | AM18: -85 | AN18: -114 | AO18: Aplus
A19: ANiTi | B19: 0.057 | C19: 0.3 | D19: 0.65 | E19: 0.007 | F19: 0.007 | G19: 0.03 | H19: 3.03 | I19: 0.03 | J19: 0.005 | K19: 0.0005 | L19: 0.0005 | M19: 0.0036 | N19: 0.0002 | O19: 0.0018 | P19: 0.0072 | Q19: 0.046 | R19: 0.0588 | S19: 673 | T19: 0.154 | U19: 0.426 | V19: 0.537 | W19: 0.283 | X19: 0.209 | Y19: 672 | Z19: 641 | AA19: 581 | AB19: 521 | AC19: 460 | AD19: 61 | AE19: 31 | AF19: 91 | AG19: 151 | AH19: 477 | AI19: 557 | AJ19: 0.86 | AK19: 29.4 | AL19: 78 | AM19: -85 | AN19: -114 | AO19: ANiTi
A20: ANiTi | B20: 0.059 | C20: 0.31 | D20: 0.63 | E20: 0.007 | F20: 0.007 | G20: 0.03 | H20: 3 | I20: 0.03 | J20: 0.005 | K20: 0.0005 | L20: 0.0005 | M20: 0.0082 | N20: 0.0002 | O20: 0.0019 | P20: 0.0064 | Q20: 0.0426 | R20: 0.0593 | S20: 678 | T20: 0.155 | U20: 0.425 | V20: 0.540 | W20: 0.278 | X20: 0.209 | Y20: 675 | Z20: 644 | AA20: 584 | AB20: 524 | AC20: 461 | AD20: 63 | AE20: 31 | AF20: 91 | AG20: 151 | AH20: 489 | AI20: 571 | AJ20: 0.86 | AK20: 30.2 | AL20: 78 | AM20: -75 | AN20: -102 | AO20: ANiTi
A21: ANiTi | B21: 0.064 | C21: 0.27 | D21: 0.61 | E21: 0.007 | F21: 0.007 | G21: 0.03 | H21: 2.17 | I21: 0.03 | J21: 0.005 | K21: 0.0005 | L21: 0.0005 | M21: 0.0032 | N21: 0.0002 | O21: 0.0013 | P21: 0.0072 | Q21: 0.0454 | R21: 0.0573 | S21: 714 | T21: 0.144 | U21: 0.364 | V21: 0.548 | W21: 0.232 | X21: 0.191 | Y21: 721 | Z21: 675 | AA21: 615 | AB21: 555 | AC21: 473 | AD21: 82 | AE21: 46 | AF21: 106 | AG21: 166 | AH21: 461 | AI21: 537 | AJ21: 0.86 | AK21: 28 | AL21: 78.9 | AM21: -83 | AN21: -113 | AO21: ANiTi
A22: Aplus | B22: 0.064 | C22: 0.27 | D22: 0.61 | E22: 0.007 | F22: 0.007 | G22: 0.03 | H22: 2.17 | I22: 0.03 | J22: 0.005 | K22: 0.0005 | L22: 0.0005 | M22: 0.0032 | N22: 0.0002 | O22: 0.0005 | P22: 0.0091 | Q22: 0.0454 | R22: 0.0584 | S22: 712 | T22: 0.144 | U22: 0.364 | V22: 0.548 | W22: 0.232 | X22: 0.191 | Y22: 721 | Z22: 675 | AA22: 615 | AB22: 555 | AC22: 473 | AD22: 82 | AE22: 46 | AF22: 106 | AG22: 166 | AH22: 461 | AI22: 537 | AJ22: 0.86 | AK22: 28 | AL22: 78.9 | AM22: -83 | AN22: -113 | AO22: Aplus
A23: TiO2 | B23: 0.061 | C23: 0.33 | D23: 1.44 | E23: 0.009 | F23: 0.005 | G23: 0.03 | H23: 0.03 | I23: 0.03 | J23: 0.005 | K23: 0.002 | L23: 0.012 | M23: 0.0015 | N23: 0.0002 | O23: 0.0005 | P23: 0.0066 | Q23: 0.0377 | R23: 0.0465 | S23: 755 | T23: 0.150 | U23: 0.369 | V23: 0.543 | W23: 0.268 | X23: 0.207 | Y23: 773 | Z23: 680 | AA23: 620 | AB23: 560 | AC23: 483 | AD23: 77 | AE23: 92 | AF23: 152 | AG23: 212 | AH23: 470 | AI23: 547 | AJ23: 0.86 | AK23: 31 | AL23: 78.8 | AM23: -70 | AN23: -91 | AO23: TiO2
A24: CB/TiBN/TiB | B24: 0.074 | C24: 0.38 | D24: 1.42 | E24: 0.009 | F24: 0.006 | G24: 0.03 | H24: 0.03 | I24: 0.03 | J24: 0.005 | K24: 0.0005 | L24: 0.0005 | M24: 0.027 | N24: 0.0126 | O24: 0.0005 | P24: 0.0072 | Q24: 0.0269 | R24: 0.0742 | S24: 730 | T24: 0.225 | U24: 0.385 | V24: 0.569 | W24: 0.326 | X24: 0.259 | Y24: 770 | Z24: 679 | AA24: 619 | AB24: 559 | AC24: 478 | AD24: 81 | AE24: 92 | AF24: 152 | AG24: 212 | AH24: 494 | AI24: 572 | AJ24: 0.86 | AK24: 26.7 | AL24: 77.9 | AM24: -69 | AN24: -92 | AO24: CB/TiBN/TiB
A25: ANiTi | B25: 0.064 | C25: 0.27 | D25: 0.6 | E25: 0.007 | F25: 0.006 | G25: 0.03 | H25: 2.13 | I25: 0.03 | J25: 0.005 | K25: 0.0005 | L25: 0.0005 | M25: 0.008 | N25: 0.0002 | O25: 0.0014 | P25: 0.0064 | Q25: 0.0427 | R25: 0.0587 | S25: 721 | T25: 0.143 | U25: 0.360 | V25: 0.548 | W25: 0.228 | X25: 0.189 | Y25: 724 | Z25: 677 | AA25: 617 | AB25: 557 | AC25: 474 | AD25: 83 | AE25: 46 | AF25: 106 | AG25: 166 | AH25: 473 | AI25: 547 | AJ25: 0.86 | AK25: 32.4 | AL25: 77 | AM25: -77 | AN25: -96 | AO25: ANiTi
A26: Cu | B26: 0.068 | C26: 0.32 | D26: 1.49 | E26: 0.006 | F26: 0.006 | G26: 0.66 | H26: 0.03 | I26: 0.03 | J26: 0.005 | K26: 0.002 | L26: 0.012 | M26: 0.004 | N26: 0.0002 | O26: 0.0005 | P26: 0.008 | Q26: 0.041 | R26: 0.0537 | S26: 746 | T26: 0.191 | U26: 0.425 | V26: 0.556 | W26: 0.318 | X26: 0.245 | Y26: 754 | Z26: 674 | AA26: 614 | AB26: 554 | AC26: 478 | AD26: 75 | AE26: 80 | AF26: 140 | AG26: 200 | AH26: 513 | AI26: 593 | AJ26: 0.87 | AK26: 28.6 | AL26: 77 | AM26: -60 | AN26: -91 | AO26: Cu
A27: AlO | B27: 0.074 | C27: 0.35 | D27: 1.51 | E27: 0.009 | F27: 0.004 | G27: 0.03 | H27: 0.03 | I27: 0.03 | J27: 0.005 | K27: 0.0005 | L27: 0.0005 | M27: 0.0028 | N27: 0.0002 | O27: 0.0005 | P27: 0.0054 | Q27: 0.0331 | R27: 0.042 | S27: 757 | T27: 0.166 | U27: 0.395 | V27: 0.569 | W27: 0.278 | X27: 0.232 | Y27: 763 | Z27: 670 | AA27: 610 | AB27: 550 | AC27: 475 | AD27: 76 | AE27: 93 | AF27: 153 | AG27: 213 | AH27: 454 | AI27: 524 | AJ27: 0.87 | AK27: 29 | AL27: 82.4 | AM27: -80 | AN27: -92 | AO27: AlO
A28: Cu | B28: 0.075 | C28: 0.36 | D28: 1.48 | E28: 0.006 | F28: 0.007 | G28: 0.11 | H28: 0.03 | I28: 0.03 | J28: 0.005 | K28: 0.002 | L28: 0.012 | M28: 0.004 | N28: 0.0002 | O28: 0.0005 | P28: 0.008 | Q28: 0.041 | R28: 0.0537 | S28: 750 | T28: 0.171 | U28: 0.400 | V28: 0.571 | W28: 0.281 | X28: 0.236 | Y28: 764 | Z28: 673 | AA28: 613 | AB28: 553 | AC28: 475 | AD28: 77 | AE28: 91 | AF28: 151 | AG28: 211 | AH28: 502 | AI28: 578 | AJ28: 0.87 | AK28: 27.6 | AL28: 77 | AM28: -66 | AN28: -91 | AO28: Cu
A29: 1000 | B29: 0.069 | C29: 0.29 | D29: 1.45 | E29: 0.012 | F29: 0.01 | G29: 0.03 | H29: 0.03 | I29: 0.03 | J29: 0.005 | K29: 0.0005 | L29: 0.0005 | M29: 0.0034 | N29: 0.0002 | O29: 0.0005 | P29: 0.0071 | Q29: 0.0461 | R29: 0.0573 | S29: 764 | T29: 0.156 | U29: 0.370 | V29: 0.558 | W29: 0.265 | X29: 0.217 | Y29: 770 | Z29: 677 | AA29: 617 | AB29: 557 | AC29: 479 | AD29: 78 | AE29: 92 | AF29: 152 | AG29: 212 | AH29: 477 | AI29: 549 | AJ29: 0.87 | AK29: 27.6 | AL29: 74.7 | AM29: -64 | AN29: -92 | AO29: 1000
A30: AlO | B30: 0.08 | C30: 0.46 | D30: 1.26 | E30: 0.011 | F30: 0.004 | G30: 0.03 | H30: 0.03 | I30: 0.03 | J30: 0.005 | K30: 0.0005 | L30: 0.0005 | M30: 0.0025 | N30: 0.0002 | O30: 0.017 | P30: 0.005 | Q30: 0.0316 | R30: 0.0563 | S30: 779 | T30: 0.163 | U30: 0.378 | V30: 0.584 | W30: 0.241 | X30: 0.221 | Y30: 781 | Z30: 691 | AA30: 631 | AB30: 571 | AC30: 480 | AD30: 91 | AE30: 90 | AF30: 150 | AG30: 210 | AH30: 481 | AI30: 551 | AJ30: 0.87 | AK30: 29.4 | AL30: 79.8 | AM30: -76 | AN30: -95 | AO30: AlO
A31: TiOX | B31: 0.085 | C31: 0.34 | D31: 1.63 | E31: 0.01 | F31: 0.004 | G31: 0.03 | H31: 0.03 | I31: 0.03 | J31: 0.005 | K31: 0.0005 | L31: 0.0005 | M31: 0.0025 | N31: 0.0002 | O31: 0.0005 | P31: 0.0068 | Q31: 0.0276 | R31: 0.0376 | S31: 736 | T31: 0.183 | U31: 0.424 | V31: 0.599 | W31: 0.298 | X31: 0.263 | Y31: 750 | Z31: 657 | AA31: 597 | AB31: 537 | AC31: 466 | AD31: 71 | AE31: 93 | AF31: 153 | AG31: 213 | AH31: 489 | AI31: 560 | AJ31: 0.87 | AK31: 26.8 | AL31: 80.7 | AM31: -84 | AN31: -106 | AO31: TiOX
A32: Zn | B32: 0.069 | C32: 0.27 | D32: 1.45 | E32: 0.01 | F32: 0.01 | G32: 0.04 | H32: 0.03 | I32: 0.03 | J32: 0.005 | K32: 0.0005 | L32: 0.0009 | M32: 0.0029 | N32: 0.0002 | O32: 0.0006 | P32: 0.0094 | Q32: 0.043 | R32: 0.0561 | S32: 759 | T32: 0.156 | U32: 0.368 | V32: 0.558 | W32: 0.265 | X32: 0.217 | Y32: 769 | Z32: 677 | AA32: 617 | AB32: 557 | AC32: 479 | AD32: 78 | AE32: 92 | AF32: 152 | AG32: 212 | AH32: 476 | AI32: 545 | AJ32: 0.87 | AK32: 28.4 | AL32: 77.1 | AM32: -65 | AN32: -90 | AO32: Zn
A33: CB/TiBN/TiB | B33: 0.073 | C33: 0.48 | D33: 1.54 | E33: 0.01 | F33: 0.006 | G33: 0.03 | H33: 0.03 | I33: 0.03 | J33: 0.005 | K33: 0.0005 | L33: 0.0005 | M33: 0.052 | N33: 0.0032 | O33: 0.0005 | P33: 0.0084 | Q33: 0.0294 | R33: 0.0935 | S33: 709 | T33: 0.186 | U33: 0.421 | V33: 0.566 | W33: 0.303 | X33: 0.245 | Y33: 761 | Z33: 668 | AA33: 608 | AB33: 548 | AC33: 474 | AD33: 74 | AE33: 93 | AF33: 153 | AG33: 213 | AH33: 516 | AI33: 590 | AJ33: 0.87 | AK33: 26.2 | AL33: 75 | AM33: -76 | AN33: -103 | AO33: CB/TiBN/TiB
A34: CB/TiBN/TiB | B34: 0.067 | C34: 0.31 | D34: 1.45 | E34: 0.008 | F34: 0.008 | G34: 0.03 | H34: 0.03 | I34: 0.03 | J34: 0.005 | K34: 0.0005 | L34: 0.0005 | M34: 0.0038 | N34: 0.014 | O34: 0.0005 | P34: 0.0075 | Q34: 0.0449 | R34: 0.0707 | S34: 740 | T34: 0.224 | U34: 0.371 | V34: 0.554 | W34: 0.335 | X34: 0.253 | Y34: 770 | Z34: 678 | AA34: 618 | AB34: 558 | AC34: 480 | AD34: 78 | AE34: 92 | AF34: 152 | AG34: 212 | AH34: 477 | AI34: 545 | AJ34: 0.88 | AK34: 22.5 | AL34: 74.7 | AM34: -60 | AN34: -90 | AO34: CB/TiBN/TiB
A35: AlO | B35: 0.094 | C35: 0.46 | D35: 1.25 | E35: 0.01 | F35: 0.004 | G35: 0.03 | H35: 0.03 | I35: 0.03 | J35: 0.005 | K35: 0.0005 | L35: 0.0005 | M35: 0.003 | N35: 0.0002 | O35: 0.015 | P35: 0.0053 | Q35: 0.0327 | R35: =SUM(M35:Q35) -> 0.0562 | S35: 775 | T35: =(B35)+(C35/30)+((D35+G35+I35)/20)+(H35/60)+(J35/15)+(L35/10)+(5*N35) -> 0.177 | U35: =B35+(D35+C35)/6+(I35+J35+L35)/5+(H35+G35)/15 -> 0.390 | V35: =0.75+(0.25*TANH(20*(B35-0.12))) -> 0.631 | W35: =C35/24+D35/6+G35/15+H35/20+(I35+J35+L35+K35)/5+5*N35 -> 0.239 | X35: =B35+V35*W35 -> 0.245 | Y35: =910-310*(B35)-80*(D35)-80*(J35)-55*(H35)-20*(G35)-15*(I35) -> 778 | Z35: =830-270*B35-90*D35-37*H35-70*I35-83*J35 -> 688 | AA35: =770-270*B35-90*D35-37*H35-70*I35-83*J35 -> 628 | AB35: =710-270*B35-90*D35-37*H35-70*I35-83*J35 -> 568 | AC35: =561-474*B35-33*D35-17*H35-17*I35-21*J35 -> 474 | AD35: 94 | AE35: 89 | AF35: 149 | AG35: 209 | AH35: 478 | AI35: 546 | AJ35: 0.88 | AK35: 26.8 | AL35: 80.7 | AM35: -83 | AN35: -96 | AO35: AlO
A36: MnNb/MnTi/MnV | B36: 0.076 | C36: 0.29 | D36: 1.74 | E36: 0.006 | F36: 0.008 | G36: 0.03 | H36: 0.03 | I36: 0.03 | J36: 0.005 | K36: 0.0005 | L36: 0.0004 | M36: 0.0035 | N36: 0.0002 | O36: 0.0005 | P36: 0.0092 | Q36: 0.0415 | R36: 0.0549 | S36: 732 | T36: 0.178 | U36: 0.425 | V36: 0.573 | W36: 0.314 | X36: 0.256 | Y36: 744 | Z36: 649 | AA36: 589 | AB36: 529 | AC36: 466 | AD36: 63 | AE36: 95 | AF36: 155 | AG36: 215 | AH36: 500 | AI36: 571 | AJ36: 0.88 | AK36: 28.8 | AL36: 77 | AM36: -62 | AN36: -90 | AO36: MnNb/MnTi/MnV
A37: AlO | B37: 0.074 | C37: 0.35 | D37: 1.48 | E37: 0.007 | F37: 0.006 | G37: 0.03 | H37: 0.03 | I37: 0.03 | J37: 0.005 | K37: 0.0005 | L37: 0.0005 | M37: 0.0034 | N37: 0.0002 | O37: 0.0005 | P37: 0.0075 | Q37: 0.04 | R37: 0.0516 | S37: 759 | T37: 0.165 | U37: 0.390 | V37: 0.569 | W37: 0.273 | X37: 0.229 | Y37: 766 | Z37: 673 | AA37: 613 | AB37: 553 | AC37: 476 | AD37: 77 | AE37: 92 | AF37: 152 | AG37: 212 | AH37: 461 | AI37: 526 | AJ37: 0.88 | AK37: 30 | AL37: 78.9 | AM37: -69 | AN37: -93 | AO37: AlO
A38: ANiTi | B38: 0.074 | C38: 0.36 | D38: 0.63 | E38: 0.006 | F38: 0.006 | G38: 0.03 | H38: 2.04 | I38: 0.03 | J38: 0.005 | K38: 0.0005 | L38: 0.0005 | M38: 0.022 | N38: 0.0002 | O38: 0.0016 | P38: 0.007 | Q38: 0.0307 | R38: 0.0615 | S38: 711 | T38: 0.156 | U38: 0.384 | V38: 0.569 | W38: 0.232 | X38: 0.206 | Y38: 723 | Z38: 675 | AA38: 615 | AB38: 555 | AC38: 470 | AD38: 85 | AE38: 48 | AF38: 108 | AG38: 168 | AH38: 495 | AI38: 562 | AJ38: 0.88 | AK38: 28 | AL38: 78 | AM38: -67 | AN38: -99 | AO38: ANiTi
A39: AlO | B39: 0.083 | C39: 0.47 | D39: 1.35 | E39: 0.011 | F39: 0.004 | G39: 0.03 | H39: 0.03 | I39: 0.03 | J39: 0.005 | K39: 0.0005 | L39: 0.0005 | M39: 0.003 | N39: 0.0002 | O39: 0.012 | P39: 0.0049 | Q39: 0.03 | R39: 0.0501 | S39: 771 | T39: 0.171 | U39: 0.397 | V39: 0.593 | W39: 0.256 | X39: 0.235 | Y39: 773 | Z39: 682 | AA39: 622 | AB39: 562 | AC39: 476 | AD39: 86 | AE39: 91 | AF39: 151 | AG39: 211 | AH39: 492 | AI39: 558 | AJ39: 0.88 | AK39: 26.4 | AL39: 81.6 | AM39: -80 | AN39: -94 | AO39: AlO
A40: CB/TiBN/TiB | B40: 0.079 | C40: 0.48 | D40: 1.54 | E40: 0.01 | F40: 0.006 | G40: 0.03 | H40: 0.03 | I40: 0.03 | J40: 0.005 | K40: 0.0005 | L40: 0.0005 | M40: 0.061 | N40: 0.0014 | O40: 0.0005 | P40: 0.0081 | Q40: 0.0276 | R40: 0.0986 | S40: 697 | T40: 0.183 | U40: 0.427 | V40: 0.581 | W40: 0.294 | X40: 0.250 | Y40: 759 | Z40: 666 | AA40: 606 | AB40: 546 | AC40: 472 | AD40: 75 | AE40: 93 | AF40: 153 | AG40: 213 | AH40: 545 | AI40: 617 | AJ40: 0.88 | AK40: 25.4 | AL40: 76.9 | AM40: -74 | AN40: -100 | AO40: CB/TiBN/TiB
A41: AlN/AlO/Al/AlTi | B41: 0.069 | C41: 0.3 | D41: 1.36 | E41: 0.009 | F41: 0.007 | G41: 0.03 | H41: 0.03 | I41: 0.03 | J41: 0.005 | K41: 0.0005 | L41: 0.0005 | M41: 0.0037 | N41: 0.0002 | O41: 0.0005 | P41: 0.0068 | Q41: 0.0432 | R41: 0.0544 | S41: 772 | T41: 0.152 | U41: 0.357 | V41: 0.558 | W41: 0.251 | X41: 0.209 | Y41: 777 | Z41: 685 | AA41: 625 | AB41: 565 | AC41: 482 | AD41: 83 | AE41: 91 | AF41: 151 | AG41: 211 | AH41: 468 | AI41: 529 | AJ41: 0.88 | AK41: 32.6 | AL41: 80.7 | AM41: -72 | AN41: -99 | AO41: AlN/AlO/Al/AlTi
A42: AlN/AlO/Al/AlTi | B42: 0.073 | C42: 0.33 | D42: 1.39 | E42: 0.008 | F42: 0.007 | G42: 0.03 | H42: 0.03 | I42: 0.03 | J42: 0.005 | K42: 0.0005 | L42: 0.0005 | M42: 0.0039 | N42: 0.0002 | O42: 0.002 | P42: 0.0066 | Q42: 0.0427 | R42: 0.0554 | S42: 769 | T42: 0.158 | U42: 0.371 | V42: 0.566 | W42: 0.257 | X42: 0.219 | Y42: 773 | Z42: 682 | AA42: 622 | AB42: 562 | AC42: 479 | AD42: 82 | AE42: 92 | AF42: 152 | AG42: 212 | AH42: 475 | AI42: 536 | AJ42: 0.89 | AK42: 33.4 | AL42: 80.7 | AM42: -70 | AN42: -95 | AO42: AlN/AlO/Al/AlTi
A43: CB/TiBN/TiB | B43: 0.07 | C43: 0.42 | D43: 1.53 | E43: 0.009 | F43: 0.007 | G43: 0.03 | H43: 0.03 | I43: 0.03 | J43: 0.005 | K43: 0.0005 | L43: 0.0005 | M43: 0.029 | N43: 0.0046 | O43: 0.0005 | P43: 0.0069 | Q43: 0.0292 | R43: 0.0702 | S43: 737 | T43: 0.187 | U43: 0.406 | V43: 0.560 | W43: 0.306 | X43: 0.241 | Y43: 763 | Z43: 670 | AA43: 610 | AB43: 550 | AC43: 476 | AD43: 74 | AE43: 93 | AF43: 153 | AG43: 213 | AH43: 501 | AI43: 564 | AJ43: 0.89 | AK43: 25.8 | AL43: 75.1 | AM43: -82 | AN43: -98 | AO43: CB/TiBN/TiB
A44: CB/TiBN/TiB | B44: 0.066 | C44: 0.39 | D44: 1.45 | E44: 0.008 | F44: 0.006 | G44: 0.03 | H44: 0.03 | I44: 0.03 | J44: 0.005 | K44: 0.0005 | L44: 0.0005 | M44: 0.027 | N44: 0.0091 | O44: 0.0005 | P44: 0.0075 | Q44: 0.0255 | R44: 0.0696 | S44: 736 | T44: 0.201 | U44: 0.384 | V44: 0.552 | W44: 0.314 | X44: 0.239 | Y44: 770 | Z44: 678 | AA44: 618 | AB44: 558 | AC44: 481 | AD44: 77 | AE44: 92 | AF44: 152 | AG44: 212 | AH44: 497 | AI44: 559 | AJ44: 0.89 | AK44: 28 | AL44: 75.8 | AM44: -81 | AN44: -96 | AO44: CB/TiBN/TiB
A45: ANiTi | B45: 0.069 | C45: 0.39 | D45: 0.67 | E45: 0.011 | F45: 0.006 | G45: 0.03 | H45: 2.96 | I45: 0.03 | J45: 0.005 | K45: 0.0005 | L45: 0.0005 | M45: 0.022 | N45: 0.0002 | O45: 0.0021 | P45: 0.007 | Q45: 0.0328 | R45: 0.0641 | S45: 665 | T45: 0.169 | U45: 0.452 | V45: 0.558 | W45: 0.286 | X45: 0.229 | Y45: 671 | Z45: 639 | AA45: 579 | AB45: 519 | AC45: 455 | AD45: 64 | AE45: 32 | AF45: 92 | AG45: 152 | AH45: 533 | AI45: 599 | AJ45: 0.89 | AK45: 27 | AL45: 78 | AM45: -75 | AN45: -105 | AO45: ANiTi
A46: CB/TiBN/TiB | B46: 0.068 | C46: 0.34 | D46: 1.51 | E46: 0.008 | F46: 0.007 | G46: 0.03 | H46: 0.03 | I46: 0.03 | J46: 0.005 | K46: 0.0005 | L46: 0.0005 | M46: 0.0033 | N46: 0.0033 | O46: 0.0005 | P46: 0.007 | Q46: 0.047 | R46: 0.0611 | S46: 756 | T46: 0.175 | U46: 0.387 | V46: 0.556 | W46: 0.293 | X46: 0.231 | Y46: 765 | Z46: 672 | AA46: 612 | AB46: 552 | AC46: 478 | AD46: 74 | AE46: 93 | AF46: 153 | AG46: 213 | AH46: 514 | AI46: 575 | AJ46: 0.89 | AK46: 25 | AL46: 75.7 | AM46: -60 | AN46: -96 | AO46: CB/TiBN/TiB
A47: TiO2 | B47: 0.073 | C47: 0.44 | D47: 1.38 | E47: 0.006 | F47: 0.004 | G47: 0.03 | H47: 0.03 | I47: 0.03 | J47: 0.005 | K47: 0.002 | L47: 0.012 | M47: 0.0042 | N47: 0.0002 | O47: 0.0005 | P47: 0.0073 | Q47: 0.042 | R47: 0.0542 | S47: 764 | T47: 0.163 | U47: 0.390 | V47: 0.566 | W47: 0.263 | X47: 0.222 | Y47: 774 | Z47: 682 | AA47: 622 | AB47: 562 | AC47: 480 | AD47: 83 | AE47: 91 | AF47: 151 | AG47: 211 | AH47: 503 | AI47: 561 | AJ47: 0.90 | AK47: 29 | AL47: 78.8 | AM47: -65 | AN47: -92 | AO47: TiO2
A48: CB/TiBN/TiB | B48: 0.064 | C48: 0.36 | D48: 1.43 | E48: 0.007 | F48: 0.007 | G48: 0.03 | H48: 0.03 | I48: 0.03 | J48: 0.005 | K48: 0.0005 | L48: 0.0005 | M48: 0.0036 | N48: 0.0112 | O48: 0.0005 | P48: 0.0071 | Q48: 0.0447 | R48: 0.0671 | S48: 750 | T48: 0.207 | U48: 0.373 | V48: 0.548 | W48: 0.320 | X48: 0.239 | Y48: 773 | Z48: 680 | AA48: 620 | AB48: 560 | AC48: 482 | AD48: 78 | AE48: 92 | AF48: 152 | AG48: 212 | AH48: 479 | AI48: 533 | AJ48: 0.90 | AK48: 25.2 | AL48: 74.7 | AM48: -65 | AN48: -93 | AO48: CB/TiBN/TiB
A49: CB/TiBN/TiB | B49: 0.075 | C49: 0.4 | D49: 1.5 | E49: 0.01 | F49: 0.006 | G49: 0.03 | H49: 0.03 | I49: 0.03 | J49: 0.005 | K49: 0.0005 | L49: 0.0005 | M49: 0.039 | N49: 0.0051 | O49: 0.0005 | P49: 0.0085 | Q49: 0.0297 | R49: 0.0828 | S49: 723 | T49: 0.193 | U49: 0.403 | V49: 0.571 | W49: 0.303 | X49: 0.248 | Y49: 764 | Z49: 671 | AA49: 611 | AB49: 551 | AC49: 475 | AD49: 76 | AE49: 93 | AF49: 153 | AG49: 213 | AH49: 514 | AI49: 571 | AJ49: 0.90 | AK49: 28 | AL49: 79 | AM49: -83 | AN49: -108 | AO49: CB/TiBN/TiB
A50: AlO | B50: 0.082 | C50: 0.47 | D50: 1.35 | E50: 0.006 | F50: 0.005 | G50: 0.03 | H50: 0.03 | I50: 0.03 | J50: 0.005 | K50: 0.0005 | L50: 0.0005 | M50: 0.0044 | N50: 0.0002 | O50: 0.015 | P50: 0.0046 | Q50: 0.0345 | R50: 0.0587 | S50: 777 | T50: 0.170 | U50: 0.396 | V50: 0.590 | W50: 0.256 | X50: 0.233 | Y50: 773 | Z50: 683 | AA50: 623 | AB50: 563 | AC50: 476 | AD50: 86 | AE50: 91 | AF50: 151 | AG50: 211 | AH50: 492 | AI50: 546 | AJ50: 0.90 | AK50: 29.2 | AL50: 80.7 | AM50: -78 | AN50: -96 | AO50: AlO
A51: MnSi | B51: 0.066 | C51: 0.37 | D51: 1.82 | E51: 0.008 | F51: 0.007 | G51: 0.03 | H51: 0.03 | I51: 0.03 | J51: 0.005 | K51: 0.0005 | L51: 0.0005 | M51: 0.0083 | N51: 0.0002 | O51: 0.0005 | P51: 0.007 | Q51: 0.0406 | R51: 0.0566 | S51: 736 | T51: 0.174 | U51: 0.442 | V51: 0.552 | W51: 0.330 | X51: 0.248 | Y51: 741 | Z51: 645 | AA51: 585 | AB51: 525 | AC51: 469 | AD51: 56 | AE51: 96 | AF51: 156 | AG51: 216 | AH51: 533 | AI51: 591 | AJ51: 0.90 | AK51: 28.6 | AL51: 78.8 | AM51: -62 | AN51: -93 | AO51: MnSi
A52: Cplus | B52: 0.076 | C52: 0.25 | D52: 1.48 | E52: 0.006 | F52: 0.008 | G52: 0.03 | H52: 0.95 | I52: 0.03 | J52: 0.005 | K52: 0.0005 | L52: 0.0005 | M52: 0.0033 | N52: 0.0002 | O52: 0.0005 | P52: 0.0081 | Q52: 0.0417 | R52: 0.0538 | S52: 707 | T52: 0.179 | U52: 0.437 | V52: 0.573 | W52: 0.315 | X52: 0.256 | Y52: 714 | Z52: 639 | AA52: 579 | AB52: 519 | AC52: 459 | AD52: 59 | AE52: 76 | AF52: 136 | AG52: 196 | AH52: 498 | AI52: 551 | AJ52: 0.90 | AK52: 27.2 | AL52: 78.9 | AM52: -62 | AN52: -94 | AO52: Cplus
A53: TiO2 | B53: 0.076 | C53: 0.41 | D53: 1.4 | E53: 0.006 | F53: 0.005 | G53: 0.03 | H53: 0.03 | I53: 0.03 | J53: 0.005 | K53: 0.002 | L53: 0.012 | M53: 0.0027 | N53: 0.0002 | O53: 0.0005 | P53: 0.0082 | Q53: 0.0395 | R53: 0.0511 | S53: 756 | T53: 0.166 | U53: 0.391 | V53: 0.573 | W53: 0.265 | X53: 0.228 | Y53: 771 | Z53: 680 | AA53: 620 | AB53: 560 | AC53: 478 | AD53: 82 | AE53: 91 | AF53: 151 | AG53: 211 | AH53: 500 | AI53: 553 | AJ53: 0.90 | AK53: 28.2 | AL53: 77.7 | AM53: -72 | AN53: -93 | AO53: TiO2
A54: CB/TiBN/TiB | B54: 0.077 | C54: 0.39 | D54: 1.56 | E54: 0.011 | F54: 0.006 | G54: 0.03 | H54: 0.03 | I54: 0.03 | J54: 0.005 | K54: 0.0005 | L54: 0.0005 | M54: 0.04 | N54: 0.0014 | O54: 0.0005 | P54: 0.0068 | Q54: 0.0286 | R54: 0.0773 | S54: 724 | T54: 0.179 | U54: 0.413 | V54: 0.576 | W54: 0.294 | X54: 0.246 | Y54: 758 | Z54: 665 | AA54: 605 | AB54: 545 | AC54: 472 | AD54: 73 | AE54: 93 | AF54: 153 | AG54: 213 | AH54: 558 | AI54: 616 | AJ54: 0.91 | AK54: 23.6 | AL54: 74.3 | AM54: -77 | AN54: -94 | AO54: CB/TiBN/TiB
A55: MnV | B55: 0.078 | C55: 0.26 | D55: 1.71 | E55: 0.007 | F55: 0.005 | G55: 0.03 | H55: 0.03 | I55: 0.03 | J55: 0.005 | K55: 0.0005 | L55: 0.06 | M55: 0.0025 | N55: 0.0002 | O55: 0.0005 | P55: 0.0086 | Q55: 0.0405 | R55: 0.0523 | S55: 700 | T55: 0.183 | U55: 0.429 | V55: 0.579 | W55: 0.319 | X55: 0.263 | Y55: 746 | Z55: 651 | AA55: 591 | AB55: 531 | AC55: 466 | AD55: 65 | AE55: 95 | AF55: 155 | AG55: 215 | AH55: 589 | AI55: 650 | AJ55: 0.91 | AK55: 21.6 | AL55: 75 | AM55: -64 | AN55: -90 | AO55: MnV
A56: MnV | B56: 0.078 | C56: 0.27 | D56: 1.35 | E56: 0.006 | F56: 0.007 | G56: 0.03 | H56: 0.03 | I56: 0.03 | J56: 0.005 | K56: 0.0005 | L56: 0.043 | M56: 0.0029 | N56: 0.0002 | O56: 0.0005 | P56: 0.0079 | Q56: 0.041 | R56: 0.0525 | S56: 742 | T56: 0.164 | U56: 0.368 | V56: 0.579 | W56: 0.256 | X56: 0.226 | Y56: 775 | Z56: 684 | AA56: 624 | AB56: 564 | AC56: 478 | AD56: 85 | AE56: 91 | AF56: 151 | AG56: 211 | AH56: 536 | AI56: 590 | AJ56: 0.91 | AK56: 24.4 | AL56: 78.1 | AM56: -70 | AN56: -94 | AO56: MnV
A57: AlO | B57: 0.077 | C57: 0.34 | D57: 1.52 | E57: 0.006 | F57: 0.005 | G57: 0.03 | H57: 0.03 | I57: 0.03 | J57: 0.005 | K57: 0.0005 | L57: 0.0005 | M57: 0.0033 | N57: 0.0002 | O57: 0.0004 | P57: 0.0065 | Q57: 0.0324 | R57: 0.0428 | S57: 753 | T57: 0.169 | U57: 0.398 | V57: 0.576 | W57: 0.279 | X57: 0.238 | Y57: 761 | Z57: 669 | AA57: 609 | AB57: 549 | AC57: 473 | AD57: 76 | AE57: 93 | AF57: 153 | AG57: 213 | AH57: 484 | AI57: 532 | AJ57: 0.91 | AK57: 29.6 | AL57: 78.9 | AM57: -77 | AN57: -94 | AO57: AlO
A58: CB/TiBN/TiB | B58: 0.077 | C58: 0.42 | D58: 1.53 | E58: 0.01 | F58: 0.006 | G58: 0.03 | H58: 0.03 | I58: 0.03 | J58: 0.005 | K58: 0.0005 | L58: 0.0005 | M58: 0.043 | N58: 0.0108 | O58: 0.0005 | P58: 0.0079 | Q58: 0.0298 | R58: 0.092 | S58: 706 | T58: 0.225 | U58: 0.413 | V58: 0.576 | W58: 0.337 | X58: 0.271 | Y58: 761 | Z58: 668 | AA58: 608 | AB58: 548 | AC58: 473 | AD58: 75 | AE58: 93 | AF58: 153 | AG58: 213 | AH58: 547 | AI58: 601 | AJ58: 0.91 | AK58: 25 | AL58: 74.2 | AM58: -62 | AN58: -96 | AO58: CB/TiBN/TiB
A59: CB/TiBN/TiB | B59: 0.07 | C59: 0.43 | D59: 1.48 | E59: 0.01 | F59: 0.007 | G59: 0.03 | H59: 0.03 | I59: 0.03 | J59: 0.005 | K59: 0.0005 | L59: 0.0005 | M59: 0.026 | N59: 0.0021 | O59: 0.0005 | P59: 0.007 | Q59: 0.0314 | R59: 0.067 | S59: 750 | T59: 0.173 | U59: 0.399 | V59: 0.560 | W59: 0.286 | X59: 0.230 | Y59: 767 | Z59: 674 | AA59: 614 | AB59: 554 | AC59: 478 | AD59: 76 | AE59: 93 | AF59: 153 | AG59: 213 | AH59: 529 | AI59: 581 | AJ59: 0.91 | AK59: 25.6 | AL59: 78 | AM59: -72 | AN59: -93 | AO59: CB/TiBN/TiB
A60: Zn | B60: 0.076 | C60: 0.31 | D60: 1.48 | E60: 0.01 | F60: 0.01 | G60: 0.04 | H60: 0.03 | I60: 0.03 | J60: 0.005 | K60: 0.0005 | L60: 0.0006 | M60: 0.0027 | N60: 0.0002 | O60: 0.0005 | P60: 0.0075 | Q60: 0.0425 | R60: 0.0534 | S60: 756 | T60: 0.166 | U60: 0.386 | V60: 0.573 | W60: 0.272 | X60: 0.232 | Y60: 765 | Z60: 673 | AA60: 613 | AB60: 553 | AC60: 475 | AD60: 78 | AE60: 92 | AF60: 152 | AG60: 212 | AH60: 497 | AI60: 541 | AJ60: 0.92 | AK60: 26.9 | AL60: 76.2 | AM60: -65 | AN60: -94 | AO60: Zn
A61: Y | B61: 0.07 | C61: 0.45 | D61: 1.57 | E61: 0.01 | F61: 0.006 | G61: 0.03 | H61: 0.03 | I61: 0.03 | J61: 0.005 | K61: 0.0005 | L61: 0.0005 | M61: 0.039 | N61: 0.0039 | O61: 0.0013 | P61: 0.0083 | Q61: 0.0308 | R61: 0.0833 | S61: 724 | T61: 0.187 | U61: 0.418 | V61: 0.560 | W61: 0.311 | X61: 0.244 | Y61: 760 | Z61: 666 | AA61: 606 | AB61: 546 | AC61: 475 | AD61: 71 | AE61: 93 | AF61: 153 | AG61: 213 | AH61: 546 | AI61: 594 | AJ61: 0.92 | AK61: 25.8 | AL61: 73 | AM61: -84 | AN61: -114 | AO61: Y
A62: CB/TiBN/TiB | B62: 0.075 | C62: 0.37 | D62: 1.49 | E62: 0.01 | F62: 0.006 | G62: 0.03 | H62: 0.03 | I62: 0.03 | J62: 0.005 | K62: 0.0005 | L62: 0.0005 | M62: 0.037 | N62: 0.0041 | O62: 0.0005 | P62: 0.0069 | Q62: 0.0282 | R62: 0.0767 | S62: 729 | T62: 0.186 | U62: 0.396 | V62: 0.571 | W62: 0.295 | X62: 0.243 | Y62: 764 | Z62: 672 | AA62: 612 | AB62: 552 | AC62: 475 | AD62: 77 | AE62: 92 | AF62: 152 | AG62: 212 | AH62: 546 | AI62: 594 | AJ62: 0.92 | AK62: 25.8 | AL62: 73 | AM62: -81 | AN62: -107 | AO62: CB/TiBN/TiB
A63: TiBAlN | B63: 0.07 | C63: 0.45 | D63: 1.57 | E63: 0.01 | F63: 0.006 | G63: 0.03 | H63: 0.03 | I63: 0.03 | J63: 0.005 | K63: 0.0005 | L63: 0.0005 | M63: 0.039 | N63: 0.0039 | O63: 0.0013 | P63: 0.0083 | Q63: 0.0308 | R63: 0.0833 | S63: =906.49-(2.78*13)-439.3*(B63)+34.17*(C63)-36.7*(D63)-8.5*(G63)-51.2*(H63)-27.08*(I63)-63.48*(J63)-1765.95*(K63)-520.29*(L63)-2401.12*(M63)-1784.44*(N63)+21.89*(O63)+5300.15*(P63)-420.96*(Q63)+297.07*(B63*B63)-16.4*(D63*D63)+11668.54*(K63*K63)+458.21*SQRT(M63)-1142.45*SQRT(P63)+298.91*SQRT(Q63) -> 724 | T63: =(B63)+(C63/30)+((D63+G63+I63)/20)+(H63/60)+(J63/15)+(L63/10)+(5*N63) -> 0.187 | U63: =B63+(D63+C63)/6+(I63+J63+L63)/5+(H63+G63)/15 -> 0.418 | V63: =0.75+(0.25*TANH(20*(B63-0.12))) -> 0.560 | W63: =C63/24+D63/6+G63/15+H63/20+(I63+J63+L63+K63)/5+5*N63 -> 0.311 | X63: =B63+V63*W63 -> 0.244 | Y63: =910-310*(B63)-80*(D63)-80*(J63)-55*(H63)-20*(G63)-15*(I63) -> 760 | Z63: =830-270*B63-90*D63-37*H63-70*I63-83*J63 -> 666 | AA63: 606 | AB63: 546 | AC63: =561-474*B63-33*D63-17*H63-17*I63-21*J63 -> 475 | AD63: 71 | AE63: 93 | AF63: 153 | AG63: 213 | AH63: 546 | AI63: 594 | AJ63: 0.92 | AK63: 25.8 | AL63: 73 | AM63: -82 | AN63: -98 | AO63: TiBAlN
A64: Heat ID | B64: Weld Metal Chemical Composition (wt.%) | S64: Calculated Metallurgical Characteristics | AH64: YS | AI64: UTS | AJ64: YS/UTS | AK64: El | AL64: RA | AM64: Temp (ºC) | AN64: Temp (ºC) | AO64: Heat ID
B65: Carbon | C65: Silicon | D65: Manganese | E65: Phosphorus | F65: Sulfur | G65: Copper | H65: Nickel | I65: Chromium | J65: Molybdenum | K65: Niobium | L65: Vanadium | M65: Titanium | N65: Boron | O65: Aluminum | P65: Nitrogen | Q65: Oxygen | R65: (Ti+B+Al+N+O) | S65: New Ar3 (ºC) | T65: Pcm | U65: CE | V65: A(C) | W65: EMU | X65: CEN | Y65: Ar3m (ºC) | Z65: Bs (ºC) | AA65: B50 (ºC) | AB65: Bf (ºC) | AC65: Ms (ºC) | AD65: Bf-Ms (ºC) | AE65: Ar3m -Bs (ºC) | AF65: Ar3m -B50 (ºC) | AG65: Ar3m -Bf (ºC) | AH65: MPa | AI65: MPa | AK65: % | AL65: % | AM65: CVN 100J | AN65: CVN 28J
A66: Minimum | B66: =MIN(B3:B63) -> 0.038 | C66: 0.25 | D66: 0.6 | E66: 0.006 | F66: 0.003 | G66: 0.03 | H66: 0.03 | I66: 0.03 | J66: 0.005 | K66: 0.0005 | L66: 0.0004 | M66: 0.0005 | N66: 0.0002 | O66: 0.0004 | P66: 0.0046 | Q66: 0.0240 | R66: 0.0327 | S66: 646 | T66: =MIN(T3:T63) -> 0.135 | U66: 0.264 | V66: 0.518 | W66: 0.164 | X66: 0.153 | Y66: 651 | Z66: 628 | AA66: 568 | AB66: 508 | AC66: 455 | AD66: 47 | AE66: 23 | AF66: 83 | AG66: 143 | AH66: 417 | AI66: 498 | AJ66: 0.82 | AK66: 21.6 | AL66: 73 | AM66: -85 | AN66: -114 | AO66: Minimum
A67: Maximum | B67: =MAX(B3:B63) -> 0.094 | C67: 0.48 | D67: 1.82 | E67: 0.014 | F67: 0.011 | G67: 0.66 | H67: 3.49 | I67: 0.03 | J67: 0.005 | K67: 0.0020 | L67: 0.06 | M67: 0.061 | N67: 0.014 | O67: 0.017 | P67: 0.0094 | Q67: 0.0500 | R67: 0.0986 | S67: 820 | T67: =MAX(T3:T63) -> 0.225 | U67: 0.452 | V67: 0.631 | W67: 0.337 | X67: 0.271 | Y67: 826 | Z67: 752 | AA67: 692 | AB67: 632 | AC67: 509 | AD67: 123 | AE67: 96 | AF67: 156 | AG67: 216 | AH67: 589 | AI67: 650 | AJ67: 0.92 | AK67: 33.4 | AL67: 82.4 | AM67: -60 | AN67: -90 | AO67: Maximum
A68: Average | B68: =AVERAGE(B3:B63) -> 0.072 | C68: =AVERAGE(C3:C63) -> 0.352 | D68: 1.286 | E68: 0.009 | F68: 0.006 | G68: 0.050 | H68: 0.600 | I68: 0.030 | J68: 0.005 | K68: 0.0006 | L68: 0.003 | M68: 0.0113 | N68: 0.0016 | O68: 0.0017 | P68: 0.0071 | Q68: 0.0369 | R68: 0.0586 | S68: =906.49-(2.78*13)-439.3*(B68)+34.17*(C68)-36.7*(D68)-8.5*(G68)-51.2*(H68)-27.08*(I68)-63.48*(J68)-1765.95*(K68)-520.29*(L68)-2401.12*(M68)-1784.44*(N68)+21.89*(O68)+5300.15*(P68)-420.96*(Q68)+297.07*(B68*B68)-16.4*(D68*D68)+11668.54*(K68*K68)+458.21*SQRT(M68)-1142.45*SQRT(P68)+298.91*SQRT(Q68) -> 745 | T68: =(B68)+(C68/30)+((D68+G68+I68)/20)+(H68/60)+(J68/15)+(L68/10)+(5*N68) -> 0.171 | U68: =B68+(D68+C68)/6+(I68+J68+L68)/5+(H68+G68)/15 -> 0.396 | V68: =0.75+(0.25*TANH(20*(B68-0.12))) -> 0.564 | W68: =C68/24+D68/6+G68/15+H68/20+(I68+J68+L68+K68)/5+5*N68 -> 0.278 | X68: =B68+V68*W68 -> 0.229 | Y68: =910-310*(B68)-80*(D68)-80*(J68)-55*(H68)-20*(G68)-15*(I68) -> 750 | Z68: =830-270*B68-90*D68-37*H68-70*I68-83*J68 -> 670 | AA68: =770-270*B68-90*D68-37*H68-70*I68-83*J68 -> 610 | AB68: =710-270*B68-90*D68-37*H68-70*I68-83*J68 -> 550 | AC68: =561-474*B68-33*D68-17*H68-17*I68-21*J68 -> 474 | AD68: =AB68-AC68 -> 77 | AE68: =Y68-Z68 -> 80 | AF68: =Y68-AA68 -> 140 | AG68: =Y68-AB68 -> 200 | AO68: Average
A69: Balanced | B69: 0.072 | C69: 0.352 | D69: 1.286 | E69: 0.009 | F69: 0.006 | G69: 0.050 | H69: 0.600 | I69: 0.030 | J69: 0.005 | K69: 0.0006 | L69: 0.003 | M69: 0.0041 | N69: 0.0002 | O69: 0.0025 | P69: 0.0073 | Q69: 0.0415 | R69: =SUM(M69:Q69) -> 0.0556 | S69: =906.49-(2.78*13)-439.3*(B69)+34.17*(C69)-36.7*(D69)-8.5*(G69)-51.2*(H69)-27.08*(I69)-63.48*(J69)-1765.95*(K69)-520.29*(L69)-2401.12*(M69)-1784.44*(N69)+21.89*(O69)+5300.15*(P69)-420.96*(Q69)+297.07*(B69*B69)-16.4*(D69*D69)+11668.54*(K69*K69)+458.21*SQRT(M69)-1142.45*SQRT(P69)+298.91*SQRT(Q69) -> 747 | T69: =(B69)+(C69/30)+((D69+G69+I69)/20)+(H69/60)+(J69/15)+(L69/10)+(5*N69) -> 0.164 | U69: =B69+(D69+C69)/6+(I69+J69+L69)/5+(H69+G69)/15 -> 0.396 | V69: =0.75+(0.25*TANH(20*(B69-0.12))) -> 0.564 | W69: =C69/24+D69/6+G69/15+H69/20+(I69+J69+L69+K69)/5+5*N69 -> 0.271 | X69: =B69+V69*W69 -> 0.225 | Y69: =910-310*(B69)-80*(D69)-80*(J69)-55*(H69)-20*(G69)-15*(I69) -> 750 | Z69: =830-270*B69-90*D69-37*H69-70*I69-83*J69 -> 670 | AA69: =770-270*B69-90*D69-37*H69-70*I69-83*J69 -> 610 | AB69: =710-270*B69-90*D69-37*H69-70*I69-83*J69 -> 550 | AC69: =561-474*B69-33*D69-17*H69-17*I69-21*J69 -> 474 | AD69: =AB69-AC69 -> 77 | AE69: =Y69-Z69 -> 80 | AF69: =Y69-AA69 -> 140 | AG69: =Y69-AB69 -> 200 | AO69: Balanced
S72: Ar3 (°C) = 910 – (310 x C) – (80 x Mn) – (80 x Mo) – (55 x Ni) – (20 x Cu) – (15 x Cr)
S73: BS (°C) = 830 – (270 × C) – (90 × Mn) – (37 × Ni) – (70 × Cr) – (83 × Mo)
S74: B50 (°C) = 770 – (270 × C) – (90 × Mn) – (37 × Ni) – (70 × Cr) – (83 × Mo)
S75: BF (°C) = 710 – (270 × C) – (90 × Mn) – (37 × Ni) – (70 × Cr) – (83 × Mo)
S76: MS (°C) = 561 – (474 × C) – (33 × Mn)– (17 × Ni) – (17 × Cr) – (21 × Mo)
S78: 𝑃 cm = C+Si/30+(Mn+Cu+Cr)/20+Ni/60+Mo/15+V/10+(5×B)
S79: CEIIW = C+(Mn+Si)/6+(Cr+Mo+V)/5+(Ni+Cu)/15
S80: CEN = C + {A(C) × EMU}
S81: 𝐴 (C) = 0.75 + 0.25tanh [20 × (C − 0.12)]
S82: EMU = {Si/24 + Mn/6 + Cu/15 + Ni/20 + (Cr + Mo + V + Nb)/5 + (5 x B)}
